Workbook

Sheet Stock Price Data
A1: STOCK PRICE DATE, DAILY, 26OCT98-25OCT99
L2: min | M2: =MIN(I6:I257) -> -0.02845898807
I3: Returns | L3: max | M3: =MAX(I6:I257) -> 0.02849595917
A4: Date | B4: SP500 | C4: Abbott | D4: Ford | E4: Kellogg | F4: Microsoft | G4: ATT | I4: SP500 | J4: MSFT | L4: n | M4: 30
A5: 1998-10-26 | B5: 1072.32 | C5: 44.8953 | D5: 48.646 | E5: 32.9852 | F5: 92.375 | G5: 44 | L5: bin size | M5: =(M3-M2)/M4 -> 0.001898498241
A6: 1998-10-27 | B6: 1065.34 | C6: 44.2795 | D6: 49.1301 | E6: 32.4983 | F6: 92.4375 | G6: 44.6875 | I6: =LN(B6/B5) -> -0.006530528528 | J6: =LN(F6/F5) -> 0.0006763612027
A7: 1998-10-28 | B7: 1068.09 | C7: 45.3264 | D7: 49.8237 | E7: 31.8897 | F7: 92.6875 | G7: 43 | I7: 0.002578009612 | J7: 0.002700879427
A8: 1998-10-29 | B8: 1085.93 | C8: 46.4966 | D8: 50.1901 | E8: 31.342 | F8: 93.0625 | G8: 43.375 | I8: 0.01656475606 | J8: 0.004037690546 | L8: =M2 -> -0.02845898807 | M8: =FREQUENCY(I6:I257,L8:L38) -> 1
A9: 1998-10-30 | B9: 1098.67 | C9: 46.3118 | D9: 52.9987 | E9: 32.1332 | F9: 92.25 | G9: 43.875 | I9: 0.01166359464 | J9: -0.008769027524 | L9: =L8+$M$5 -> -0.02656048983 | M9: 1
A10: 1998-11-02 | B10: 1111.6 | C10: 46.3734 | D10: 53.1819 | E10: 32.8635 | F10: 86.3125 | G10: 44 | I10: 0.01170006153 | J10: -0.06652785175 | L10: -0.02466199158 | M10: 0
A11: 1998-11-03 | B11: 1110.84 | C11: 46.127 | D11: 52.0218 | E11: 33.1677 | F11: 87.875 | G11: 44 | I11: -0.0006839330012 | J11: 0.01794091896 | L11: -0.02276349334 | M11: 2
A12: 1998-11-04 | B12: 1118.67 | C12: 44.9569 | D12: 52.7545 | E12: 33.898 | F12: 88.0625 | G12: 43.1875 | I12: 0.007023993785 | J12: 0.002131439528 | L12: -0.0208649951 | M12: 7
A13: 1998-11-05 | B13: 1133.85 | C13: 45.8807 | D13: 52.3882 | E13: 34.5675 | F13: 90.6875 | G13: 44.6875 | I13: 0.01347844175 | J13: 0.02937274099 | L13: -0.01896649686 | M13: 2
A14: 1998-11-06 | B14: 1141.01 | C14: 46.6197 | D14: 52.6934 | E14: 34.5675 | F14: 91.0625 | G14: 45.75 | I14: 0.006294913659 | J14: 0.004126553311 | L14: -0.01706799862 | M14: 9
A15: 1998-11-09 | B15: 1130.2 | C15: 45.8807 | D15: 51.7776 | E15: 34.0806 | F15: 92.5625 | G15: 47.875 | I15: -0.00951922687 | J15: 0.01633800807 | L15: -0.01516950038 | M15: 4
A16: 1998-11-10 | B16: 1128.26 | C16: 46.8045 | D16: 52.6934 | E16: 33.7763 | F16: 94.3125 | G16: 48.75 | I16: -0.001717985244 | J16: 0.0187296445 | L16: -0.01327100214 | M16: 5
A17: 1998-11-11 | B17: 1120.97 | C17: 45.2649 | D17: 52.6324 | E17: 33.472 | F17: 94.9375 | G17: 47.4375 | I17: -0.006482241057 | J17: 0.006605043828 | L17: -0.0113725039 | M17: 7
A18: 1998-11-12 | B18: 1117.69 | C18: 45.0801 | D18: 50.8006 | E18: 33.4112 | F18: 93.75 | G18: 46.9375 | I18: -0.002930326487 | J18: -0.01258711551 | L18: -0.009474005655 | M18: 6
A19: 1998-11-13 | B19: 1125.72 | C19: 45.2649 | D19: 52.1439 | E19: 33.3503 | F19: 93.6875 | G19: 46.625 | I19: 0.007158775519 | J19: -0.0006668889877 | L19: -0.007575507414 | M19: 11
A20: 1998-11-16 | B20: 1135.87 | C20: 47.6667 | D20: 53.3651 | E20: 33.7763 | F20: 91.8125 | G20: 45 | I20: 0.008976046187 | J20: -0.02021632193 | L20: -0.005677009173 | M20: 18
A21: 1998-11-17 | B21: 1139.32 | C21: 46.4966 | D21: 53.5483 | E21: 33.2286 | F21: 92.5625 | G21: 43.75 | I21: 0.003032716076 | J21: 0.008135638094 | L21: -0.003778510932 | M21: 15
A22: 1998-11-18 | B22: 1144.48 | C22: 46.6197 | D22: 53.6093 | E22: 32.9243 | F22: 89.9844 | G22: 41.75 | I22: 0.004518792171 | J22: -0.02824777006 | L22: -0.001880012691 | M22: 18
A23: 1998-11-19 | B23: 1152.61 | C23: 48.0362 | D23: 53.1209 | E23: 33.3503 | F23: 90.5625 | G23: 43.5 | I23: 0.007078550642 | J23: 0.006403898108 | L23: 1.848555002e-05 | M23: 17
A24: 1998-11-20 | B24: 1163.55 | C24: 48.4673 | D24: 54.0978 | E24: 33.1677 | F24: 89.5 | G24: 43.5 | I24: 0.009446740603 | J24: -0.0118015948 | L24: 0.001916983791 | M24: 14
A25: 1998-11-23 | B25: 1188.21 | C25: 48.9599 | D25: 54.4641 | E25: 33.1069 | F25: 92.125 | G25: 43.75 | I25: 0.02097229637 | J25: 0.02890772523 | L25: 0.003815482032 | M25: 17
A26: 1998-11-24 | B26: 1182.99 | C26: 48.1593 | D26: 53.9757 | E26: 33.8276 | F26: 91.4375 | G26: 43.405 | I26: -0.004402841121 | J26: -0.007490671729 | L26: 0.005713980273 | M26: 13
A27: 1998-11-25 | B27: 1186.87 | C27: 48.0978 | D27: 53.5483 | E27: 35.4822 | F27: 90.9375 | G27: 42.41 | I27: 0.003274457957 | J27: -0.005483221415 | L27: 0.007612478514 | M27: 18
A28: 1998-11-27 | B28: 1192.33 | C28: 48.5904 | D28: 53.8536 | E28: 35.237 | F28: 91.1875 | G28: 42.2235 | I28: 0.004589786134 | J28: 0.002745368917 | L28: 0.009510976756 | M28: 9
A29: 1998-11-30 | B29: 1163.63 | C29: 47.2972 | D29: 53.7925 | E29: 35.9111 | F29: 96.0625 | G29: 43.7781 | I29: -0.0243649466 | J29: 0.05208119502 | L29: 0.011409475 | M29: 10
A30: 1998-12-01 | B30: 1175.28 | C30: 47.174 | D30: 56.7844 | E30: 36.5852 | F30: 94.625 | G30: 44.2756 | I30: 0.009961987718 | J30: -0.01507730954 | L30: 0.01330797324 | M30: 9
A31: 1998-12-02 | B31: 1171.25 | C31: 48.1593 | D31: 55.1358 | E31: 35.666 | F31: 97.5625 | G31: 44.8353 | I31: -0.00343486251 | J31: 0.03057148652 | L31: 0.01520647148 | M31: 9
A32: 1998-12-03 | B32: 1150.14 | C32: 47.174 | D32: 53.8536 | E32: 34.9919 | F32: 96.4375 | G32: 45.3949 | I32: -0.01818788047 | J32: -0.01159806815 | L32: 0.01710496972 | M32: 10
A33: 1998-12-04 | B33: 1176.74 | C33: 49.0215 | D33: 55.0747 | E33: 34.3178 | F33: 94 | G33: 45.2705 | I33: 0.02286422919 | J33: -0.02560034785 | L33: 0.01900346796 | M33: 4
A34: 1998-12-07 | B34: 1187.7 | C34: 49.0215 | D34: 55.1968 | E34: 34.6242 | F34: 92.625 | G34: 44.2756 | I34: 0.009270760517 | J34: -0.01473569865 | L34: 0.0209019662 | M34: 1
A35: 1998-12-08 | B35: 1181.38 | C35: 48.8984 | D35: 53.6704 | E35: 34.9306 | F35: 95.0625 | G35: 44.2756 | I35: -0.005335417118 | J35: 0.0259754864 | L35: 0.02280046444 | M35: 9
A36: 1998-12-09 | B36: 1183.49 | C36: 48.652 | D36: 53.5483 | E36: 35.0532 | F36: 93.875 | G36: 44.8974 | I36: 0.001784453742 | J36: -0.01257045994 | L36: 0.02469896268 | M36: 3
A37: 1998-12-10 | B37: 1165.02 | C37: 47.4203 | D37: 52.8156 | E37: 34.6855 | F37: 95 | G37: 45.6437 | I37: -0.01572944617 | J37: 0.01191278152 | L37: 0.02659746093 | M37: 2
A38: 1998-12-11 | B38: 1166.46 | C38: 48.1593 | D38: 53.6093 | E38: 34.4404 | F38: 94.0625 | G38: 46.2655 | I38: 0.001235267026 | J38: -0.009917436657 | L38: 0.02849595917 | M38: 1
A39: 1998-12-14 | B39: 1141.2 | C39: 47.0508 | D39: 51.167 | E39: 34.8081 | F39: 92.25 | G39: 45.768 | I39: -0.02189318092 | J39: -0.01945717202
A40: 1998-12-15 | B40: 1162.83 | C40: 46.3118 | D40: 53.1209 | E40: 35.4822 | F40: 94.25 | G40: 47.0739 | I40: 0.01877634881 | J40: 0.02144854341
A41: 1998-12-16 | B41: 1161.94 | C41: 45.4496 | D41: 54.342 | E41: 34.2565 | F41: 95.875 | G41: 47.8823 | I41: -0.0007656671787 | J41: 0.01709443336
A42: 1998-12-17 | B42: 1179.98 | C42: 46.9892 | D42: 55.6853 | E42: 33.8888 | F42: 91.8125 | G42: 46.763 | I42: 0.0154064672 | J42: -0.04329680575
A43: 1998-12-18 | B43: 1188.03 | C43: 46.3734 | D43: 55.5632 | E43: 33.6437 | F43: 92.375 | G43: 47.1361 | I43: 0.006798983965 | J43: 0.006107925334
A44: 1998-12-21 | B44: 1202.84 | C44: 45.6344 | D44: 54.0978 | E44: 33.3373 | F44: 92.5625 | G44: 44.7731 | I44: 0.01238895417 | J44: 0.00202771276
A45: 1998-12-22 | B45: 1203.57 | C45: 46.6197 | D45: 54.5863 | E45: 33.1535 | F45: 92.25 | G45: 45.768 | I45: 0.0006067129229 | J45: -0.003381809107
A46: 1998-12-23 | B46: 1228.54 | C46: 47.6667 | D46: 57.0286 | E46: 33.5824 | F46: 93.25 | G46: 47.2605 | I46: 0.02053433224 | J46: 0.0107817756
A47: 1998-12-24 | B47: 1226.27 | C47: 47.174 | D47: 57.5171 | E47: 34.1953 | F47: 94.625 | G47: 49.6857 | I47: -0.001849430829 | J47: 0.01463765323
A48: 1998-12-28 | B48: 1225.49 | C48: 46.2502 | D48: 58.1887 | E48: 33.9501 | F48: 95.3125 | G48: 49.0016 | I48: -0.0006362776343 | J48: 0.007239255044
A49: 1998-12-29 | B49: 1241.81 | C49: 48.2209 | D49: 57.8834 | E49: 33.8888 | F49: 92.1875 | G49: 46.3899 | I49: 0.01322922872 | J49: -0.03333642027
A50: 1998-12-30 | B50: 1231.93 | C50: 47.913 | D50: 56.7844 | E50: 33.4599 | F50: 86.4375 | G50: 47.0117 | I50: -0.007987947427 | J50: -0.06440293711
A51: 1998-12-31 | B51: 1229.23 | C51: 48.2825 | D51: 57.3339 | E51: 33.4599 | F51: 83.375 | G51: 46.6386 | I51: -0.002194088221 | J51: -0.03607310519
A52: 1999-01-04 | B52: 1228.1 | C52: 48.0362 | D52: 56.418 | E52: 33.8276 | F52: 83.8125 | G52: 47.9445 | I52: -0.00091969746 | J52: 0.005233656806
A53: 1999-01-05 | B53: 1244.78 | C53: 48.0978 | D53: 58.1277 | E53: 35.6047 | F53: 85 | G53: 48.3798 | I53: 0.01349054784 | J53: 0.01406909545
A54: 1999-01-06 | B54: 1272.34 | C54: 47.7282 | D54: 60.3258 | E54: 36.4627 | F54: 84.5625 | G54: 49.4991 | I54: 0.02189891732 | J54: -0.005160350559
A55: 1999-01-07 | B55: 1269.73 | C55: 47.1124 | D55: 60.3868 | E55: 36.7691 | F55: 84.3125 | G55: 48.8151 | I55: -0.002053445355 | J55: -0.002960771963
A56: 1999-01-08 | B56: 1275.09 | C56: 46.9276 | D56: 63.5008 | E56: 36.5852 | F56: 84.6875 | G56: 49.0016 | I56: 0.004212484911 | J56: 0.004437877106
A57: 1999-01-11 | B57: 1263.88 | C57: 46.3118 | D57: 63.0123 | E57: 37.9947 | F57: 81.75 | G57: 48.1932 | I57: -0.008830409845 | J57: -0.0353022013
A58: 1999-01-12 | B58: 1239.51 | C58: 45.8807 | D58: 61.4248 | E58: 38.056 | F58: 84.1875 | G58: 48.1932 | I58: -0.01947021428 | J58: 0.02938064439
A59: 1999-01-13 | B59: 1234.4 | C59: 47.5118 | D59: 59.9594 | E59: 37.0755 | F59: 82.9375 | G59: 48.6907 | I59: -0.004131118163 | J59: -0.01495914208
A60: 1999-01-14 | B60: 1212.19 | C60: 46.894 | D60: 58.9825 | E60: 36.524 | F60: 83.8125 | G60: 50.6184 | I60: -0.01815638103 | J60: 0.01049484895
A61: 1999-01-15 | B61: 1243.26 | C61: 47.0793 | D61: 60.57 | E61: 38.1786 | F61: 85.125 | G61: 51.4268 | I61: 0.02530832098 | J61: 0.01553860343
A62: 1999-01-19 | B62: 1252 | C62: 45.8436 | D62: 62.4628 | E62: 37.7496 | F62: 85.75 | G62: 50.4319 | I62: 0.007005310663 | J62: 0.007315321576
A63: 1999-01-20 | B63: 1256.62 | C63: 46.3379 | D63: 63.1955 | E63: 37.1368 | F63: 84.9375 | G63: 49.6857 | I63: 0.003683304146 | J63: -0.009520394135
A64: 1999-01-21 | B64: 1235.16 | C64: 44.4844 | D64: 60.631 | E64: 36.7078 | F64: 84.75 | G64: 50.6184 | I64: -0.01722506048 | J64: -0.002209945651
A65: 1999-01-22 | B65: 1225.19 | C65: 43.743 | D65: 59.4709 | E65: 37.3819 | F65: 84.8125 | G65: 51.2403 | I65: -0.008104582334 | J65: 0.0007371913345
A66: 1999-01-25 | B66: 1233.98 | C66: 42.9398 | D66: 59.5931 | E66: 38.056 | F66: 85.8125 | G66: 51.8621 | I66: 0.007148783886 | J66: 0.01172174593
A67: 1999-01-26 | B67: 1252.31 | C67: 45.0404 | D67: 60.3868 | E67: 38.056 | F67: 86.9375 | G67: 53.168 | I67: 0.01474512797 | J67: 0.01302478616
A68: 1999-01-27 | B68: 1243.17 | C68: 45.2258 | D68: 59.3632 | E68: 38.4237 | F68: 90 | G68: 54.6605 | I68: -0.007325276797 | J68: 0.03462020065
A69: 1999-01-28 | B69: 1265.37 | C69: 45.5038 | D69: 61.5163 | E69: 41.2427 | F69: 88.8125 | G69: 54.7226 | I69: 0.01770000047 | J69: -0.01328226447
A70: 1999-01-29 | B70: 1279.64 | C70: 45.9054 | D70: 60.4705 | E70: 39.8332 | F70: 87.625 | G70: 54.5983 | I70: =LN(B70/B69) -> 0.01121421884 | J70: =LN(F70/F69) -> -0.0134610605
A71: 1999-02-01 | B71: 1273 | C71: 45.2876 | D71: 59.7938 | E71: 39.4655 | F71: 90.25 | G71: 53.7277 | I71: -0.005202468798 | J71: 0.02951725186
A72: 1999-02-02 | B72: 1261.99 | C72: 45.5965 | D72: 58.0713 | E72: 40.2009 | F72: 91.0625 | G72: 54.4739 | I72: -0.008686479418 | J72: 0.008962486742
A73: 1999-02-03 | B73: 1272.07 | C73: 46.0908 | D73: 59.4247 | E73: 39.1591 | F73: 94.6875 | G73: 55.4689 | I73: 0.007955654693 | J73: 0.03903591175
A74: 1999-02-04 | B74: 1248.49 | C74: 45.1022 | D74: 56.9025 | E74: 38.6075 | F74: 93.3125 | G74: 53.9142 | I74: -0.01871067376 | J74: -0.0146279204
A75: 1999-02-05 | B75: 1239.4 | C75: 45.2876 | D75: 56.3489 | E75: 38.8527 | F75: 98.375 | G75: 55.531 | I75: -0.007307429548 | J75: 0.05283263144
A76: 1999-02-08 | B76: 1243.77 | C76: 44.608 | D76: 57.7638 | E76: 38.6075 | F76: 99.4375 | G76: 55.2201 | I76: 0.003519698218 | J76: 0.01074259936
A77: 1999-02-09 | B77: 1216.14 | C77: 43.8048 | D77: 56.595 | E77: 37.4432 | F77: 94.375 | G77: 55.0957 | I77: -0.02246518127 | J77: -0.05225309853
A78: 1999-02-10 | B78: 1223.55 | C78: 44.4844 | D78: 57.8868 | E78: 37.5045 | F78: 94.9375 | G78: 56.0285 | I78: 0.006074560937 | J78: 0.005942572787
A79: 1999-02-11 | B79: 1254.04 | C79: 45.3494 | D79: 59.1786 | E79: 38.056 | F79: 93.625 | G79: 56.8369 | I79: 0.0246138702 | J79: -0.01392133852
A80: 1999-02-12 | B80: 1230.13 | C80: 44.4844 | D80: 56.964 | E80: 37.8109 | F80: 94.1875 | G80: 57.2722 | I80: -0.01925048477 | J80: 0.005990034549
A81: 1999-02-16 | B81: 1241.87 | C81: 46.3997 | D81: 56.5334 | E81: 38.1173 | F81: 93.25 | G81: 57.521 | I81: 0.009498453289 | J81: -0.01000341786
A82: 1999-02-17 | B82: 1224.03 | C82: 44.4844 | D82: 58.1944 | E82: 37.9334 | F82: 92.5625 | G82: 58.205 | I82: -0.01446961455 | J82: -0.007399966496
A83: 1999-02-18 | B83: 1237.28 | C83: 45.4729 | D83: 59.1171 | E83: 37.8109 | F83: 92.3125 | G83: 57.9562 | I83: 0.01076672828 | J83: -0.002704531736
A84: 1999-02-19 | B84: 1239.22 | C84: 45.4729 | D84: 57.8868 | E84: 37.6883 | F84: 89.5625 | G84: 56.3394 | I84: 0.001566727556 | J84: -0.0302428547
A85: 1999-02-22 | B85: 1272.14 | C85: 46.7086 | D85: 59.4862 | E85: 38.2399 | F85: 92 | G85: 56.2773 | I85: 0.02621837232 | J85: 0.02685187146
A86: 1999-02-23 | B86: 1271.18 | C86: 46.6468 | D86: 58.3174 | E86: 37.3819 | F86: 91.1875 | G86: 56.3394 | I86: -0.0007549188034 | J86: -0.008870750766
A87: 1999-02-24 | B87: 1253.41 | C87: 45.2258 | D87: 58.5635 | E87: 37.1368 | F87: 90.1875 | G87: 55.531 | I87: -0.01407776588 | J87: -0.01102698975
A88: 1999-02-25 | B88: 1245.02 | C88: 45.7201 | D88: 58.625 | E88: 36.6903 | F88: 88 | G88: 55.3445 | I88: -0.006716243031 | J88: -0.02455402206
A89: 1999-02-26 | B89: 1238.33 | C89: 45.7818 | D89: 58.3789 | E89: 36.5053 | F89: 86.75 | G89: 54.3495 | I89: -0.005387896337 | J89: -0.01430639565
A90: 1999-03-01 | B90: 1236.16 | C90: 45.4111 | D90: 57.4562 | E90: 37.2453 | F90: 84.9375 | G90: 54.3495 | I90: -0.001753897212 | J90: -0.02111472692
A91: 1999-03-02 | B91: 1225.5 | C91: 45.3494 | D91: 56.2259 | E91: 36.3203 | F91: 84.625 | G91: 53.852 | I91: -0.00866087651 | J91: -0.003685960679
A92: 1999-03-03 | B92: 1227.7 | C92: 46.4615 | D92: 55.9183 | E92: 36.567 | F92: 86 | G92: 54.847 | I92: 0.001793576219 | J92: 0.01611756502
A93: 1999-03-04 | B93: 1246.64 | C93: 47.8825 | D93: 57.4562 | E93: 36.382 | F93: 86.5 | G93: 55.9663 | I93: 0.01530943195 | J93: 0.005797117684
A94: 1999-03-05 | B94: 1275.47 | C94: 48.871 | D94: 59.1786 | E94: 36.6903 | F94: 88.9375 | G94: 56.2151 | I94: 0.02286280598 | J94: 0.02778946191
A95: 1999-03-08 | B95: 1282.73 | C95: 49.3653 | D95: 59.1171 | E95: 35.7037 | F95: 85 | G95: 55.3445 | I95: 0.005675881081 | J95: -0.04528261936
A96: 1999-03-09 | B96: 1279.84 | C96: 49.1182 | D96: 56.841 | E96: 35.5804 | F96: 82.875 | G96: 54.163 | I96: -0.002255549097 | J96: -0.02531780798
A97: 1999-03-10 | B97: 1286.84 | C97: 49.1182 | D97: 55.9798 | E97: 36.012 | F97: 81 | G97: 54.0386 | I97: 0.005454530643 | J97: -0.02288429383
A98: 1999-03-11 | B98: 1297.68 | C98: 50.0449 | D98: 57.0256 | E98: 35.8887 | F98: 77.6875 | G98: 52.6705 | I98: 0.008388453998 | J98: -0.0417547854
A99: 1999-03-12 | B99: 1294.59 | C99: 49.2417 | D99: 57.0256 | E99: 36.8753 | F99: 77.5625 | G99: 52.6705 | I99: -0.002384012054 | J99: -0.001610306306
A100: 1999-03-15 | B100: 1307.26 | C100: 50.1067 | D100: 57.5792 | E100: 37.8003 | F100: 78.125 | G100: 52.8882 | I100: 0.009739300997 | J100: 0.007226045092
A101: 1999-03-16 | B101: 1306.38 | C101: 50.2303 | D101: 57.0256 | E101: 37.492 | F101: 79.875 | G101: 53.4168 | I101: -0.0006733903929 | J101: 0.02215280464
A102: 1999-03-17 | B102: 1297.82 | C102: 48.7475 | D102: 56.4719 | E102: 37.862 | F102: 82.3125 | G102: 53.5411 | I102: -0.006574019529 | J102: 0.03006006681
A103: 1999-03-18 | B103: 1316.55 | C103: 48.9328 | D103: 57.3947 | E103: 37.6153 | F103: 79.375 | G103: 53.168 | I103: 0.01432874494 | J103: -0.03633952229
A104: 1999-03-19 | B104: 1299.29 | C104: 47.45 | D104: 57.6407 | E104: 36.5053 | F104: 80.25 | G104: 53.2302 | I104: -0.0131967173 | J104: 0.0109633048
A105: 1999-03-22 | B105: 1297.01 | C105: 48.0061 | D105: 58.3174 | E105: 36.6287 | F105: 79.5625 | G105: 53.1058 | I105: -0.00175634602 | J105: -0.008603885692
A106: 1999-03-23 | B106: 1262.14 | C106: 45.7201 | D106: 55.9798 | E106: 34.9021 | F106: 76.375 | G106: 53.9764 | I106: -0.02725292241 | J106: -0.04088745883
A107: 1999-03-24 | B107: 1268.59 | C107: 46.6468 | D107: 55.3031 | E107: 35.1487 | F107: 78.4375 | G107: 54.7226 | I107: 0.005097354491 | J107: 0.02664671183
A108: 1999-03-25 | B108: 1289.99 | C108: 46.7086 | D108: 57.4562 | E108: 35.3337 | F108: 78.5 | G108: 54.7848 | I108: 0.01672841892 | J108: 0.0007964954623
A109: 1999-03-26 | B109: 1282.8 | C109: 46.2761 | D109: 56.0413 | E109: 33.6688 | F109: 80.6875 | G109: 55.2201 | I109: -0.005589277569 | J109: 0.02748504382
A110: 1999-03-29 | B110: 1310.17 | C110: 47.3882 | D110: 56.2259 | E110: 34.2854 | F110: 78.375 | G110: 56.0907 | I110: 0.02111171095 | J110: -0.02907866965
A111: 1999-03-30 | B111: 1300.75 | C111: 47.3264 | D111: 55.7337 | E111: 33.9771 | F111: 78.5 | G111: 56.9613 | I111: -0.007215878598 | J111: 0.001593625835
A112: 1999-03-31 | B112: 1286.37 | C112: 46.2761 | D112: 55.7952 | E112: 33.3605 | F112: 76.25 | G112: 57.1478 | I112: -0.01111672291 | J112: -0.0290812093
A113: 1999-04-01 | B113: 1293.72 | C113: 47.0175 | D113: 55.6107 | E113: 33.8538 | F113: 77.25 | G113: 57.8941 | I113: 0.005697491082 | J113: 0.01302950029
A114: 1999-04-05 | B114: 1321.12 | C114: 47.6971 | D114: 57.3947 | E114: 33.5454 | F114: 77.5625 | G114: 59.1378 | I114: 0.02095807233 | J114: 0.004037147187
A115: 1999-04-06 | B115: 1317.89 | C115: 47.6971 | D115: 57.3331 | E115: 32.6821 | F115: 78.4375 | G115: 58.9512 | I115: -0.002447888877 | J115: 0.01121806636
A116: 1999-04-07 | B116: 1326.89 | C116: 47.9443 | D116: 59.7938 | E116: 33.8538 | F116: 79.3125 | G116: 58.2672 | I116: 0.006805885359 | J116: 0.01109361615
A117: 1999-04-08 | B117: 1343.98 | C117: 50.8481 | D117: 59.9168 | E117: 34.3471 | F117: 78.6875 | G117: 58.8268 | I117: 0.01279750287 | J117: -0.00791143367
A118: 1999-04-09 | B118: 1348.35 | C118: 50.3539 | D118: 59.6092 | E118: 33.3605 | F118: 79.125 | G118: 59.3243 | I118: 0.003246261668 | J118: 0.00554456866
A119: 1999-04-12 | B119: 1358.63 | C119: 51.8985 | D119: 60.532 | E119: 33.7921 | F119: 76.875 | G119: 58.6403 | I119: 0.00759521638 | J119: -0.02884815434
A120: 1999-04-13 | B120: 1349.82 | C120: 52.439 | D120: 62.1929 | E120: 34.3471 | F120: 79.125 | G120: 60.6302 | I120: -0.006505588858 | J120: 0.02884815434
A121: 1999-04-14 | B121: 1328.44 | C121: 51.0753 | D121: 61.7623 | E121: 33.5454 | F121: 80.5 | G121: 59.8218 | I121: -0.01596592875 | J121: 0.01722830396
A122: 1999-04-15 | B122: 1322.85 | C122: 49.5257 | D122: 61.8238 | E122: 33.9771 | F122: 79.875 | G122: 58.0184 | I122: -0.004216821459 | J122: -0.007794271727
A123: 1999-04-16 | B123: 1319 | C123: 48.6579 | D123: 63.8539 | E123: 34.2238 | F123: 79.6875 | G123: 58.8268 | I123: -0.002914626285 | J123: -0.002350177345
A124: 1999-04-19 | B124: 1289.48 | C124: 47.1703 | D124: 63.9769 | E124: 34.7787 | F124: 79.0625 | G124: 60.1327 | I124: -0.0226348374 | J124: -0.007874056431
A125: 1999-04-20 | B125: 1306.17 | C125: 50.4555 | D125: 62.8696 | E125: 34.9021 | F125: 77.9375 | G125: 61.6252 | I125: 0.0128601545 | J125: -0.01433145548
A126: 1999-04-21 | B126: 1336.12 | C126: 52.0051 | D126: 62.9926 | E126: 36.382 | F126: 79.125 | G126: 56.6504 | I126: 0.0226707006 | J126: 0.01512165702
A127: 1999-04-22 | B127: 1358.82 | C127: 51.8811 | D127: 62.9926 | E127: 36.5053 | F127: 78.0625 | G127: 51.3025 | I127: 0.01684678463 | J127: -0.01351909258
A128: 1999-04-23 | B128: 1356.85 | C128: 52.5009 | D128: 62.7466 | E128: 36.1354 | F128: 79.875 | G128: 50.805 | I128: -0.001450839274 | J128: 0.02295312481
A129: 1999-04-26 | B129: 1360.04 | C129: 51.7571 | D129: 63.1772 | E129: 36.8753 | F129: 81.3125 | G129: 50.2453 | I129: 0.002348274289 | J129: 0.01783684358
A130: 1999-04-27 | B130: 1362.8 | C130: 51.3232 | D130: 63.0542 | E130: 37.1836 | F130: 82.0625 | G130: 52.8571 | I130: 0.002027295725 | J130: 0.00918139579
A131: 1999-04-28 | B131: 1350.91 | C131: 50.6414 | D131: 63.1157 | E131: 36.8753 | F131: 82.125 | G131: 53.9142 | I131: -0.008762967366 | J131: 0.0007613247418
A132: 1999-04-29 | B132: 1342.83 | C132: 50.2075 | D132: 65.0588 | E132: 36.937 | F132: 84 | G132: 52.7327 | I132: -0.005999112188 | J132: 0.02257432204
A133: 1999-04-30 | B133: 1335.18 | C133: 47.9761 | D133: 63.3858 | E133: 36.5053 | F133: 88 | G133: 52.6705 | I133: -0.005713213026 | J133: 0.04652001563
A134: 1999-05-03 | B134: 1354.63 | C134: 47.9141 | D134: 66.1121 | E134: 36.6287 | F134: 86 | G134: 53.1058 | I134: =LN(B134/B133) -> 0.01446224009 | J134: =LN(F134/F133) -> -0.02298951822
A135: 1999-05-04 | B135: 1332 | C135: 46.7984 | D135: 63.5717 | E135: 35.9504 | F135: 84.9375 | G135: 56.4638 | I135: -0.01684678219 | J135: -0.01243160434
A136: 1999-05-05 | B136: 1347.31 | C136: 47.6042 | D136: 63.8195 | E136: 36.4437 | F136: 82 | G136: 56.7126 | I136: 0.01142843989 | J136: -0.03519644465
A137: 1999-05-06 | B137: 1332.05 | C137: 46.8603 | D137: 61.9607 | E137: 36.4437 | F137: 83.125 | G137: 54.7226 | I137: -0.01139090305 | J137: 0.01362625171
A138: 1999-05-07 | B138: 1345 | C138: 46.4884 | D138: 64.3152 | E138: 36.752 | F138: 81 | G138: 53.6033 | I138: 0.009674904103 | J138: -0.0258963443
A139: 1999-05-10 | B139: 1340.3 | C139: 46.1785 | D139: 63.5097 | E139: 36.1354 | F139: 86.625 | G139: 55.7176 | I139: -0.003500543551 | J139: 0.06713930284
A140: 1999-05-11 | B140: 1355.61 | C140: 47.1703 | D140: 63.5097 | E140: 36.567 | F140: 88.875 | G140: 55.6347 | I140: 0.01135806803 | J140: 0.02564243061
A141: 1999-05-12 | B141: 1364 | C141: 49.3397 | D141: 63.9435 | E141: 35.9504 | F141: 85.875 | G141: 57.0442 | I141: 0.00617002189 | J141: -0.03433813758
A142: 1999-05-13 | B142: 1367.56 | C142: 49.5257 | D142: 62.9521 | E142: 36.197 | F142: 90.125 | G142: 58.3708 | I142: 0.002606570616 | J142: 0.04830484506
A143: 1999-05-14 | B143: 1337.8 | C143: 48.41 | D143: 60.2258 | E143: 36.3203 | F143: 93 | G143: 58.3294 | I143: -0.02200165633 | J143: 0.03140189755
A144: 1999-05-17 | B144: 1339.49 | C144: 48.8439 | D144: 57.0658 | E144: 36.0737 | F144: 94.25 | G144: 56.7126 | I144: 0.0012624708 | J144: 0.01335133317
A145: 1999-05-18 | B145: 1333.32 | C145: 47.3562 | D145: 57.8094 | E145: 35.7654 | F145: 94.5625 | G145: 55.6347 | I145: -0.004616872101 | J145: 0.00331016522
A146: 1999-05-19 | B146: 1344.23 | C146: 48.162 | D146: 57.1898 | E146: 35.7037 | F146: 93.3125 | G146: 56.298 | I146: 0.00814928601 | J146: -0.01330691625
A147: 1999-05-20 | B147: 1338.83 | C147: 47.2323 | D147: 57.4376 | E147: 35.272 | F147: 94.0625 | G147: 53.1473 | I147: -0.004025260181 | J147: 0.008005379644
A148: 1999-05-21 | B148: 1330.29 | C148: 46.7364 | D148: 57.7474 | E148: 34.8404 | F148: 94.9375 | G148: 51.3647 | I148: -0.006399134653 | J148: 0.009259325413
A149: 1999-05-24 | B149: 1306.65 | C149: 44.6909 | D149: 55.6407 | E149: 34.9637 | F149: 92.6875 | G149: 52.0694 | I149: -0.01793035363 | J149: -0.02398516046
A150: 1999-05-25 | B150: 1284.4 | C150: 44.195 | D150: 56.1984 | E150: 35.2104 | F150: 89.625 | G150: 52.94 | I150: -0.01717492672 | J150: -0.03359932098
A151: 1999-05-26 | B151: 1304.76 | C151: 44.133 | D151: 57.1278 | E151: 35.1955 | F151: 93 | G151: 53.3131 | I151: 0.01572743258 | J151: 0.03696519423
A152: 1999-05-27 | B152: 1281.41 | C152: 43.6371 | D152: 55.5788 | E152: 34.3885 | F152: 92.375 | G152: 54.1837 | I152: -0.01805808166 | J152: -0.006743113885
A153: 1999-05-28 | B153: 1301.84 | C153: 44.8149 | D153: 56.6321 | E153: 34.4506 | F153: 89.0625 | G153: 55.0957 | I153: 0.01581761421 | J153: -0.03651800881
A154: 1999-06-01 | B154: 1294.26 | C154: 44.5049 | D154: 57.0039 | E154: 33.8299 | F154: 89.9688 | G154: 54.3081 | I154: -0.005839545118 | J154: 0.0101245731
A155: 1999-06-02 | B155: 1294.81 | C155: 45.0008 | D155: 56.0125 | E155: 33.7057 | F155: 85.625 | G155: 53.6033 | I155: 0.0004248629881 | J155: -0.04948564698
A156: 1999-06-03 | B156: 1299.54 | C156: 43.6371 | D156: 56.1364 | E156: 33.4574 | F156: 83.2812 | G156: 51.489 | I156: 0.003646389455 | J156: -0.02775446316
A157: 1999-06-04 | B157: 1327.75 | C157: 44.6289 | D157: 55.8266 | E157: 34.2023 | F157: 86.4062 | G157: 51.5719 | I157: 0.02147542463 | J157: 0.03683659907
A158: 1999-06-07 | B158: 1334.52 | C158: 44.5669 | D158: 56.5082 | E158: 34.2644 | F158: 85.5938 | G158: 52.8156 | I158: 0.005085896316 | J158: -0.009446581877
A159: 1999-06-08 | B159: 1317.33 | C159: 44.5049 | D159: 55.5168 | E159: 34.0161 | F159: 86.2188 | G159: 54.4739 | I159: -0.01296471579 | J159: 0.00727540072
A160: 1999-06-09 | B160: 1318.64 | C160: 44.319 | D160: 54.7733 | E160: 33.954 | F160: 83.5625 | G160: 55.7176 | I160: 0.000993941591 | J160: -0.03129339648
A161: 1999-06-10 | B161: 1302.82 | C161: 43.2652 | D161: 54.5254 | E161: 33.892 | F161: 84.5312 | G161: 54.6812 | I161: -0.01206975659 | J161: 0.01152584212
A162: 1999-06-11 | B162: 1293.64 | C162: 42.8313 | D162: 53.9058 | E162: 33.3954 | F162: 82.9375 | G162: 54.6812 | I162: -0.00707119559 | J162: -0.01903338489
A163: 1999-06-14 | B163: 1294 | C163: 42.8313 | D163: 53.0384 | E163: 33.8299 | F163: 80.0938 | G163: 54.0179 | I163: 0.0002782458165 | J163: -0.03488886426
A164: 1999-06-15 | B164: 1301.16 | C164: 42.8933 | D164: 52.4807 | E164: 33.8299 | F164: 80.7188 | G164: 54.7641 | I164: 0.005517978211 | J164: 0.007773061898
A165: 1999-06-16 | B165: 1330.41 | C165: 43.6371 | D165: 54.3396 | E165: 33.7678 | F165: 80.6875 | G165: 55.7176 | I165: 0.02223099111 | J165: -0.0003878411238
A166: 1999-06-17 | B166: 1339.9 | C166: 44.257 | D166: 54.1537 | E166: 33.5816 | F166: 80.9062 | G166: 56.754 | I166: 0.007107818908 | J166: 0.002706790346
A167: 1999-06-18 | B167: 1342.84 | C167: 44.319 | D167: 54.5874 | E167: 32.4643 | F167: 79.5 | G167: 58.3708 | I167: 0.002191789869 | J167: -0.01753343729
A168: 1999-06-21 | B168: 1349 | C168: 43.8231 | D168: 54.4635 | E168: 31.7815 | F168: 77.4688 | G168: 58.0392 | I168: 0.004576803044 | J168: -0.025881747
A169: 1999-06-22 | B169: 1335.88 | C169: 43.1413 | D169: 54.3396 | E169: 31.9056 | F169: 76.125 | G169: 56.0078 | I169: -0.009773326505 | J169: -0.01749854863
A170: 1999-06-23 | B170: 1333.06 | C170: 43.4512 | D170: 52.4188 | E170: 32.6505 | F170: 74.8125 | G170: 55.303 | I170: -0.002113199285 | J170: -0.01739174271
A171: 1999-06-24 | B171: 1315.78 | C171: 43.1413 | D171: 53.4101 | E171: 32.8988 | F171: 74.2812 | G171: 54.3081 | I171: -0.01304740576 | J171: -0.007127091875
A172: 1999-06-25 | B172: 1315.31 | C172: 43.3892 | D172: 52.9764 | E172: 32.8367 | F172: 75.875 | G172: 53.8935 | I172: -0.0003572663839 | J172: 0.02122935794
A173: 1999-06-28 | B173: 1331.35 | C173: 43.6991 | D173: 52.6666 | E173: 32.8367 | F173: 75.0625 | G173: 54.4739 | I173: 0.01212108573 | J173: -0.01076614954
A174: 1999-06-29 | B174: 1351.45 | C174: 44.133 | D174: 53.1003 | E174: 32.9609 | F174: 76.75 | G174: 56.0492 | I174: 0.01498462509 | J174: 0.02223228663
A175: 1999-06-30 | B175: 1372.71 | C175: 45.0008 | D175: 55.9505 | E175: 32.7746 | F175: 76.4375 | G175: 56.0907 | I175: 0.01560879804 | J175: -0.00407997302
A176: 1999-07-01 | B176: 1380.96 | C176: 45.0628 | D176: 58.0572 | E176: 32.7746 | F176: 77.7188 | G176: 57.0027 | I176: 0.005992021327 | J176: 0.0166237709
A177: 1999-07-02 | B177: 1391.22 | C177: 45.0008 | D177: 56.9419 | E177: 32.4643 | F177: 74.4062 | G177: 57.4173 | I177: 0.007402150544 | J177: -0.04355791265
A178: 1999-07-06 | B178: 1388.12 | C178: 44.133 | D178: 57.1898 | E178: 32.4022 | F178: 73.875 | G178: 56.8784 | I178: -0.002230746354 | J178: -0.007164795974
A179: 1999-07-07 | B179: 1395.86 | C179: 43.2033 | D179: 57.0039 | E179: 33.0229 | F179: 72.875 | G179: 56.9613 | I179: 0.005560399099 | J179: -0.01362883106
A180: 1999-07-08 | B180: 1394.42 | C180: 42.5214 | D180: 56.0125 | E180: 32.0298 | F180: 75 | G180: 55.9249 | I180: -0.001032154571 | J180: 0.02874246887
A181: 1999-07-09 | B181: 1403.28 | C181: 41.8396 | D181: 55.5168 | E181: 32.5263 | F181: 78.125 | G181: 56.1322 | I181: 0.006333795346 | J181: 0.04082199452
A182: 1999-07-12 | B182: 1399.1 | C182: 41.5297 | D182: 55.269 | E182: 32.278 | F182: 78.875 | G182: 56.9613 | I182: -0.002983180796 | J182: 0.009554212805
A183: 1999-07-13 | B183: 1393.56 | C183: 41.3255 | D183: 53.0384 | E183: 31.7194 | F183: 81.375 | G183: 58.4952 | I183: -0.003967548694 | J183: 0.03120377967
A184: 1999-07-14 | B184: 1398.17 | C184: 41.5745 | D184: 52.4807 | E184: 32.1539 | F184: 80.3125 | G184: 56.9198 | I184: 0.003302614644 | J184: -0.01314282544
A185: 1999-07-15 | B185: 1409.62 | C185: 41.699 | D185: 53.0384 | E185: 32.1539 | F185: 80.0312 | G185: 57.9562 | I185: 0.008155925814 | J185: -0.003508716446
A186: 1999-07-16 | B186: 1418.78 | C186: 41.7612 | D186: 53.596 | E186: 32.0298 | F186: 82.625 | G186: 60.3607 | I186: 0.006477182877 | J186: 0.03189573953
A187: 1999-07-19 | B187: 1407.65 | C187: 41.5745 | D187: 53.4721 | E187: 32.1539 | F187: 80 | G187: 58.7854 | I187: -0.007875700109 | J187: -0.0322856635
A188: 1999-07-20 | B188: 1377.1 | C188: 42.0724 | D188: 52.7286 | E188: 31.8435 | F188: 79.5312 | G188: 60.6509 | I188: -0.02194180854 | J188: -0.005877237173
A189: 1999-07-21 | B189: 1379.29 | C189: 43.0682 | D189: 53.9058 | E189: 32.8988 | F189: 83.4062 | G189: 63.0139 | I189: 0.001589035268 | J189: 0.04757324963
A190: 1999-07-22 | B190: 1360.97 | C190: 42.8815 | D190: 53.4721 | E190: 33.2712 | F190: 83.8125 | G190: 60.9826 | I190: -0.01337119321 | J190: 0.004859513913
A191: 1999-07-23 | B191: 1356.94 | C191: 42.6948 | D191: 52.9764 | E191: 33.2712 | F191: 86.4688 | G191: 62.0604 | I191: -0.002965516116 | J191: 0.03120149419
A192: 1999-07-26 | B192: 1347.76 | C192: 42.9437 | D192: 52.6047 | E192: 33.5195 | F192: 87.5 | G192: 60.1949 | I192: -0.006788209599 | J192: 0.01185513813
A193: 1999-07-27 | B193: 1362.84 | C193: 43.1304 | D193: 52.9145 | E193: 34.1402 | F193: 87 | G193: 59.656 | I193: 0.01112680261 | J193: -0.005730674709
A194: 1999-07-28 | B194: 1365.4 | C194: 43.3171 | D194: 52.8525 | E194: 33.5816 | F194: 84.3125 | G194: 56.5882 | I194: 0.001876668293 | J194: -0.03137798469
A195: 1999-07-29 | B195: 1341.03 | C195: 43.1927 | D195: 52 | E195: 35.5059 | F195: 85.7812 | G195: 57.6246 | I195: -0.01800945059 | J195: 0.0172697343
A196: 1999-07-30 | B196: 1328.72 | C196: 42.757 | D196: 48.5 | E196: 34.5748 | F196: 80.9375 | G196: 59.4487 | I196: -0.009221902605 | J196: -0.05812261637
A197: 1999-08-02 | B197: 1328.05 | C197: 43.1304 | D197: 49.375 | E197: 33.7057 | F197: 78.125 | G197: 58.5366 | I197: -0.0005043718607 | J197: -0.03536714384
A198: 1999-08-03 | B198: 1322.18 | C198: 42.757 | D198: 50.0625 | E198: 33.7678 | F198: 79.1562 | G198: 58.4123 | I198: =LN(B198/B197) -> -0.00442981145 | J198: =LN(F198/F197) -> 0.01311300748
A199: 1999-08-04 | B199: 1305.33 | C199: 42.1346 | D199: 49.125 | E199: 33.954 | F199: 81.3125 | G199: 60.6924 | I199: -0.01282600713 | J199: 0.02687664073
A200: 1999-08-05 | B200: 1313.71 | C200: 41.5745 | D200: 48.875 | E200: 34.5127 | F200: 77.8125 | G200: 60.6095 | I200: 0.006399313182 | J200: -0.04399766961
... 57 more rows

Sheet Frequency Distribution
A1: SOME DAILY RETURN DATA FOR S&P 500
B3: SP500 | G3: Min | H3: =MIN(C6:C257) -> -0.02845898807
A4: Date | B4: Price | C4: Return | G4: Max | H4: =MAX(C6:C257) -> 0.02849595917
A5: 1998-10-26 | B5: 1072.32 | G5: n | H5: 30
A6: 1998-10-27 | B6: 1065.34 | C6: =LN(B6/B5) -> -0.006530528528 | D6: <-- =LN(B6/B5) | G6: Bin size | H6: =(H4-H3)/H5 -> 0.001898498241
A7: 1998-10-28 | B7: 1068.09 | C7: 0.002578009612 | D7: <-- =LN(B7/B6)
A8: 1998-10-29 | B8: 1085.93 | C8: 0.01656475606 | G8: Bin | H8: Frequency
A9: 1998-10-30 | B9: 1098.67 | C9: 0.01166359464 | G9: =H3 -> -0.02845898807 | H9: =FREQUENCY(C6:C257,G9:G39) -> 1
A10: 1998-11-02 | B10: 1111.6 | C10: 0.01170006153 | G10: =G9+$H$6 -> -0.02656048983 | H10: 1
A11: 1998-11-03 | B11: 1110.84 | C11: -0.0006839330012 | G11: -0.02466199158 | H11: 0
A12: 1998-11-04 | B12: 1118.67 | C12: 0.007023993785 | G12: -0.02276349334 | H12: 2
A13: 1998-11-05 | B13: 1133.85 | C13: 0.01347844175 | G13: -0.0208649951 | H13: 7
A14: 1998-11-06 | B14: 1141.01 | C14: 0.006294913659 | G14: -0.01896649686 | H14: 2
A15: 1998-11-09 | B15: 1130.2 | C15: -0.00951922687 | G15: -0.01706799862 | H15: 9
A16: 1998-11-10 | B16: 1128.26 | C16: -0.001717985244 | G16: -0.01516950038 | H16: 4
A17: 1998-11-11 | B17: 1120.97 | C17: -0.006482241057 | G17: -0.01327100214 | H17: 5
A18: 1998-11-12 | B18: 1117.69 | C18: -0.002930326487 | G18: -0.0113725039 | H18: 7
A19: 1998-11-13 | B19: 1125.72 | C19: 0.007158775519 | G19: -0.009474005655 | H19: 6
A20: 1998-11-16 | B20: 1135.87 | C20: 0.008976046187 | G20: -0.007575507414 | H20: 11
A21: 1998-11-17 | B21: 1139.32 | C21: 0.003032716076 | G21: -0.005677009173 | H21: 18
A22: 1998-11-18 | B22: 1144.48 | C22: 0.004518792171 | G22: -0.003778510932 | H22: 15
A23: 1998-11-19 | B23: 1152.61 | C23: 0.007078550642 | G23: -0.001880012691 | H23: 18
A24: 1998-11-20 | B24: 1163.55 | C24: 0.009446740603 | G24: 0 | H24: 17 | J24: <-- =FREQUENCY(C6:C257,G9:G39)
A25: 1998-11-23 | B25: 1188.21 | C25: 0.02097229637 | G25: 0.001898498241 | H25: 14 | J25: as an array function (see Chapter 29)
A26: 1998-11-24 | B26: 1182.99 | C26: -0.004402841121 | G26: 0.003796996482 | H26: 17
A27: 1998-11-25 | B27: 1186.87 | C27: 0.003274457957 | G27: 0.005695494723 | H27: 12
A28: 1998-11-27 | B28: 1192.33 | C28: 0.004589786134 | G28: 0.007593992964 | H28: 18
A29: 1998-11-30 | B29: 1163.63 | C29: -0.0243649466 | G29: 0.009492491205 | H29: 9
A30: 1998-12-01 | B30: 1175.28 | C30: 0.009961987718 | G30: 0.01139098945 | H30: 11
A31: 1998-12-02 | B31: 1171.25 | C31: -0.00343486251 | G31: 0.01328948769 | H31: 9
A32: 1998-12-03 | B32: 1150.14 | C32: -0.01818788047 | G32: 0.01518798593 | H32: 9
A33: 1998-12-04 | B33: 1176.74 | C33: 0.02286422919 | G33: 0.01708648417 | H33: 10
A34: 1998-12-07 | B34: 1187.7 | C34: 0.009270760517 | G34: 0.01898498241 | H34: 4
A35: 1998-12-08 | B35: 1181.38 | C35: -0.005335417118 | G35: 0.02088348065 | H35: 1
A36: 1998-12-09 | B36: 1183.49 | C36: 0.001784453742 | G36: 0.02278197889 | H36: 9
A37: 1998-12-10 | B37: 1165.02 | C37: -0.01572944617 | G37: 0.02468047713 | H37: 3
A38: 1998-12-11 | B38: 1166.46 | C38: 0.001235267026 | G38: 0.02657897538 | H38: 2
A39: 1998-12-14 | B39: 1141.2 | C39: -0.02189318092 | G39: 0.02847747362 | H39: 0
A40: 1998-12-15 | B40: 1162.83 | C40: 0.01877634881
A41: 1998-12-16 | B41: 1161.94 | C41: -0.0007656671787
A42: 1998-12-17 | B42: 1179.98 | C42: 0.0154064672
A43: 1998-12-18 | B43: 1188.03 | C43: 0.006798983965
A44: 1998-12-21 | B44: 1202.84 | C44: 0.01238895417
A45: 1998-12-22 | B45: 1203.57 | C45: 0.0006067129229
A46: 1998-12-23 | B46: 1228.54 | C46: 0.02053433224
A47: 1998-12-24 | B47: 1226.27 | C47: -0.001849430829
A48: 1998-12-28 | B48: 1225.49 | C48: -0.0006362776343
A49: 1998-12-29 | B49: 1241.81 | C49: 0.01322922872
A50: 1998-12-30 | B50: 1231.93 | C50: -0.007987947427
A51: 1998-12-31 | B51: 1229.23 | C51: -0.002194088221
A52: 1999-01-04 | B52: 1228.1 | C52: -0.00091969746
A53: 1999-01-05 | B53: 1244.78 | C53: 0.01349054784
A54: 1999-01-06 | B54: 1272.34 | C54: 0.02189891732
A55: 1999-01-07 | B55: 1269.73 | C55: -0.002053445355
A56: 1999-01-08 | B56: 1275.09 | C56: 0.004212484911
A57: 1999-01-11 | B57: 1263.88 | C57: -0.008830409845
A58: 1999-01-12 | B58: 1239.51 | C58: -0.01947021428
A59: 1999-01-13 | B59: 1234.4 | C59: -0.004131118163
A60: 1999-01-14 | B60: 1212.19 | C60: -0.01815638103
A61: 1999-01-15 | B61: 1243.26 | C61: 0.02530832098
A62: 1999-01-19 | B62: 1252 | C62: 0.007005310663
A63: 1999-01-20 | B63: 1256.62 | C63: 0.003683304146
A64: 1999-01-21 | B64: 1235.16 | C64: -0.01722506048
A65: 1999-01-22 | B65: 1225.19 | C65: -0.008104582334
A66: 1999-01-25 | B66: 1233.98 | C66: 0.007148783886
A67: 1999-01-26 | B67: 1252.31 | C67: 0.01474512797
A68: 1999-01-27 | B68: 1243.17 | C68: -0.007325276797
A69: 1999-01-28 | B69: 1265.37 | C69: 0.01770000047
A70: 1999-01-29 | B70: 1279.64 | C70: =LN(B70/B69) -> 0.01121421884
A71: 1999-02-01 | B71: 1273 | C71: -0.005202468798
A72: 1999-02-02 | B72: 1261.99 | C72: -0.008686479418
A73: 1999-02-03 | B73: 1272.07 | C73: 0.007955654693
A74: 1999-02-04 | B74: 1248.49 | C74: -0.01871067376
A75: 1999-02-05 | B75: 1239.4 | C75: -0.007307429548
A76: 1999-02-08 | B76: 1243.77 | C76: 0.003519698218
A77: 1999-02-09 | B77: 1216.14 | C77: -0.02246518127
A78: 1999-02-10 | B78: 1223.55 | C78: 0.006074560937
A79: 1999-02-11 | B79: 1254.04 | C79: 0.0246138702
A80: 1999-02-12 | B80: 1230.13 | C80: -0.01925048477
A81: 1999-02-16 | B81: 1241.87 | C81: 0.009498453289
A82: 1999-02-17 | B82: 1224.03 | C82: -0.01446961455
A83: 1999-02-18 | B83: 1237.28 | C83: 0.01076672828
A84: 1999-02-19 | B84: 1239.22 | C84: 0.001566727556
A85: 1999-02-22 | B85: 1272.14 | C85: 0.02621837232
A86: 1999-02-23 | B86: 1271.18 | C86: -0.0007549188034
A87: 1999-02-24 | B87: 1253.41 | C87: -0.01407776588
A88: 1999-02-25 | B88: 1245.02 | C88: -0.006716243031
A89: 1999-02-26 | B89: 1238.33 | C89: -0.005387896337
A90: 1999-03-01 | B90: 1236.16 | C90: -0.001753897212
A91: 1999-03-02 | B91: 1225.5 | C91: -0.00866087651
A92: 1999-03-03 | B92: 1227.7 | C92: 0.001793576219
A93: 1999-03-04 | B93: 1246.64 | C93: 0.01530943195
A94: 1999-03-05 | B94: 1275.47 | C94: 0.02286280598
A95: 1999-03-08 | B95: 1282.73 | C95: 0.005675881081
A96: 1999-03-09 | B96: 1279.84 | C96: -0.002255549097
A97: 1999-03-10 | B97: 1286.84 | C97: 0.005454530643
A98: 1999-03-11 | B98: 1297.68 | C98: 0.008388453998
A99: 1999-03-12 | B99: 1294.59 | C99: -0.002384012054
A100: 1999-03-15 | B100: 1307.26 | C100: 0.009739300997
A101: 1999-03-16 | B101: 1306.38 | C101: -0.0006733903929
A102: 1999-03-17 | B102: 1297.82 | C102: -0.006574019529
A103: 1999-03-18 | B103: 1316.55 | C103: 0.01432874494
A104: 1999-03-19 | B104: 1299.29 | C104: -0.0131967173
A105: 1999-03-22 | B105: 1297.01 | C105: -0.00175634602
A106: 1999-03-23 | B106: 1262.14 | C106: -0.02725292241
A107: 1999-03-24 | B107: 1268.59 | C107: 0.005097354491
A108: 1999-03-25 | B108: 1289.99 | C108: 0.01672841892
A109: 1999-03-26 | B109: 1282.8 | C109: -0.005589277569
A110: 1999-03-29 | B110: 1310.17 | C110: 0.02111171095
A111: 1999-03-30 | B111: 1300.75 | C111: -0.007215878598
A112: 1999-03-31 | B112: 1286.37 | C112: -0.01111672291
A113: 1999-04-01 | B113: 1293.72 | C113: 0.005697491082
A114: 1999-04-05 | B114: 1321.12 | C114: 0.02095807233
A115: 1999-04-06 | B115: 1317.89 | C115: -0.002447888877
A116: 1999-04-07 | B116: 1326.89 | C116: 0.006805885359
A117: 1999-04-08 | B117: 1343.98 | C117: 0.01279750287
A118: 1999-04-09 | B118: 1348.35 | C118: 0.003246261668
A119: 1999-04-12 | B119: 1358.63 | C119: 0.00759521638
A120: 1999-04-13 | B120: 1349.82 | C120: -0.006505588858
A121: 1999-04-14 | B121: 1328.44 | C121: -0.01596592875
A122: 1999-04-15 | B122: 1322.85 | C122: -0.004216821459
A123: 1999-04-16 | B123: 1319 | C123: -0.002914626285
A124: 1999-04-19 | B124: 1289.48 | C124: -0.0226348374
A125: 1999-04-20 | B125: 1306.17 | C125: 0.0128601545
A126: 1999-04-21 | B126: 1336.12 | C126: 0.0226707006
A127: 1999-04-22 | B127: 1358.82 | C127: 0.01684678463
A128: 1999-04-23 | B128: 1356.85 | C128: -0.001450839274
A129: 1999-04-26 | B129: 1360.04 | C129: 0.002348274289
A130: 1999-04-27 | B130: 1362.8 | C130: 0.002027295725
A131: 1999-04-28 | B131: 1350.91 | C131: -0.008762967366
A132: 1999-04-29 | B132: 1342.83 | C132: -0.005999112188
A133: 1999-04-30 | B133: 1335.18 | C133: -0.005713213026
A134: 1999-05-03 | B134: 1354.63 | C134: =LN(B134/B133) -> 0.01446224009
A135: 1999-05-04 | B135: 1332 | C135: -0.01684678219
A136: 1999-05-05 | B136: 1347.31 | C136: 0.01142843989
A137: 1999-05-06 | B137: 1332.05 | C137: -0.01139090305
A138: 1999-05-07 | B138: 1345 | C138: 0.009674904103
A139: 1999-05-10 | B139: 1340.3 | C139: -0.003500543551
A140: 1999-05-11 | B140: 1355.61 | C140: 0.01135806803
A141: 1999-05-12 | B141: 1364 | C141: 0.00617002189
A142: 1999-05-13 | B142: 1367.56 | C142: 0.002606570616
A143: 1999-05-14 | B143: 1337.8 | C143: -0.02200165633
A144: 1999-05-17 | B144: 1339.49 | C144: 0.0012624708
A145: 1999-05-18 | B145: 1333.32 | C145: -0.004616872101
A146: 1999-05-19 | B146: 1344.23 | C146: 0.00814928601
A147: 1999-05-20 | B147: 1338.83 | C147: -0.004025260181
A148: 1999-05-21 | B148: 1330.29 | C148: -0.006399134653
A149: 1999-05-24 | B149: 1306.65 | C149: -0.01793035363
A150: 1999-05-25 | B150: 1284.4 | C150: -0.01717492672
A151: 1999-05-26 | B151: 1304.76 | C151: 0.01572743258
A152: 1999-05-27 | B152: 1281.41 | C152: -0.01805808166
A153: 1999-05-28 | B153: 1301.84 | C153: 0.01581761421
A154: 1999-06-01 | B154: 1294.26 | C154: -0.005839545118
A155: 1999-06-02 | B155: 1294.81 | C155: 0.0004248629881
A156: 1999-06-03 | B156: 1299.54 | C156: 0.003646389455
A157: 1999-06-04 | B157: 1327.75 | C157: 0.02147542463
A158: 1999-06-07 | B158: 1334.52 | C158: 0.005085896316
A159: 1999-06-08 | B159: 1317.33 | C159: -0.01296471579
A160: 1999-06-09 | B160: 1318.64 | C160: 0.000993941591
A161: 1999-06-10 | B161: 1302.82 | C161: -0.01206975659
A162: 1999-06-11 | B162: 1293.64 | C162: -0.00707119559
A163: 1999-06-14 | B163: 1294 | C163: 0.0002782458165
A164: 1999-06-15 | B164: 1301.16 | C164: 0.005517978211
A165: 1999-06-16 | B165: 1330.41 | C165: 0.02223099111
A166: 1999-06-17 | B166: 1339.9 | C166: 0.007107818908
A167: 1999-06-18 | B167: 1342.84 | C167: 0.002191789869
A168: 1999-06-21 | B168: 1349 | C168: 0.004576803044
A169: 1999-06-22 | B169: 1335.88 | C169: -0.009773326505
A170: 1999-06-23 | B170: 1333.06 | C170: -0.002113199285
A171: 1999-06-24 | B171: 1315.78 | C171: -0.01304740576
A172: 1999-06-25 | B172: 1315.31 | C172: -0.0003572663839
A173: 1999-06-28 | B173: 1331.35 | C173: 0.01212108573
A174: 1999-06-29 | B174: 1351.45 | C174: 0.01498462509
A175: 1999-06-30 | B175: 1372.71 | C175: 0.01560879804
A176: 1999-07-01 | B176: 1380.96 | C176: 0.005992021327
A177: 1999-07-02 | B177: 1391.22 | C177: 0.007402150544
A178: 1999-07-06 | B178: 1388.12 | C178: -0.002230746354
A179: 1999-07-07 | B179: 1395.86 | C179: 0.005560399099
A180: 1999-07-08 | B180: 1394.42 | C180: -0.001032154571
A181: 1999-07-09 | B181: 1403.28 | C181: 0.006333795346
A182: 1999-07-12 | B182: 1399.1 | C182: -0.002983180796
A183: 1999-07-13 | B183: 1393.56 | C183: -0.003967548694
A184: 1999-07-14 | B184: 1398.17 | C184: 0.003302614644
A185: 1999-07-15 | B185: 1409.62 | C185: 0.008155925814
A186: 1999-07-16 | B186: 1418.78 | C186: 0.006477182877
A187: 1999-07-19 | B187: 1407.65 | C187: -0.007875700109
A188: 1999-07-20 | B188: 1377.1 | C188: -0.02194180854
A189: 1999-07-21 | B189: 1379.29 | C189: 0.001589035268
A190: 1999-07-22 | B190: 1360.97 | C190: -0.01337119321
A191: 1999-07-23 | B191: 1356.94 | C191: -0.002965516116
A192: 1999-07-26 | B192: 1347.76 | C192: -0.006788209599
A193: 1999-07-27 | B193: 1362.84 | C193: 0.01112680261
A194: 1999-07-28 | B194: 1365.4 | C194: 0.001876668293
A195: 1999-07-29 | B195: 1341.03 | C195: -0.01800945059
A196: 1999-07-30 | B196: 1328.72 | C196: -0.009221902605
A197: 1999-08-02 | B197: 1328.05 | C197: -0.0005043718607
A198: 1999-08-03 | B198: 1322.18 | C198: =LN(B198/B197) -> -0.00442981145
A199: 1999-08-04 | B199: 1305.33 | C199: -0.01282600713
A200: 1999-08-05 | B200: 1313.71 | C200: 0.006399313182
A201: 1999-08-06 | B201: 1300.29 | C201: -0.01026787904
... 56 more rows

Sheet Simulated Path
A1: Conceptualizing the Lognormal Distribution
A2: A Simple Example
D4: vol = stdev(change) * time increment ^ .5 | I4: r=ln(Pt-Pt-1)
D5: vol = stdev(change) * time increment ^ .5 | I5: Pt = Pt-1 * (exp(rt))
D6: vol/ time increment ^ .5 = stdev(change)
D7: vol/ time increment ^ .5 = stdev(LN(Pt/Pt-1))
D10: =AVERAGE(D14:D263) -> -0.08258384696 | E10: =AVERAGE(E14:E263) -> 29.16595646 | L10: =AVERAGE(L14:L263) -> -0.02180300617 | M10: =AVERAGE(M14:M263) -> 34.34296959
C11: Time | D11: Normal | E11: Stock | L11: Normal | M11: Stock
D12: deviates | E12: price | K12: Time | L12: deviates | M12: price
A13: Mean | B13: 0 | C13: 0 | E13: =B16 -> 35 | M13: =E13 -> 35 | AE13: <-- B9
A14: Sigma | B14: 0.2 | C14: 1 | D14: 0 | E14: =E13*EXP(Mean*Dt+Sigma*D14*SQRT(Dt)) -> 35 | F14: =show_formulaR(E14) -> < ---- =E13*EXP(Mean*Dt+Sigma*D14*SQRT(Dt)) | K14: =C14 -> 1 | L14: =NORMSINV(RAND()) -> -0.7934995155 | M14: =M13*EXP(Mean*Dt+Sigma*L14*SQRT(Dt)) -> 34.65184279 | AE14: <-- =E6*EXP($B$6*$B$8+$B$7*D7*SQRT($B$8))
A15: Dt | B15: =1/Time_Periods -> 0.003968253968 | C15: 2 | D15: 1.387725206 | E15: =E14*EXP(Mean*Dt+Sigma*D15*SQRT(Dt)) -> 35.61731 | F15: =show_formulaR(E15) -> < ---- =E14*EXP(Mean*Dt+Sigma*D15*SQRT(Dt)) | K15: =C15 -> 2 | L15: =NORMSINV(RAND()) -> 0.2764222775 | M15: =M14*EXP(Mean*Dt+Sigma*L15*SQRT(Dt)) -> 34.77273145 | AE15: <-- =E7*EXP($B$6*$B$8+$B$7*D8*SQRT($B$8))
A16: Initial stock price | B16: 35 | C16: 3 | D16: 1.234611773 | E16: 36.17565584 | F16: < ---- =E15*EXP(Mean*Dt+Sigma*D16*SQRT(Dt)) | K16: 3 | L16: -2.579387074 | M16: 33.66087818
A17: Time Periods | B17: 252 | C17: 4 | D17: 0.6831032806 | E17: 36.4883377 | F17: < ---- =E16*EXP(Mean*Dt+Sigma*D17*SQRT(Dt)) | K17: 4 | L17: 1.258894095 | M17: =M16*EXP(Mean*Dt+Sigma*L17*SQRT(Dt)) -> 34.19901536 | AC17: Last Price x exp(trend x time factor + Vol x Std Norm x square root (time factor))
C18: 5 | D18: 0.7155313142 | E18: 36.81876161 | F18: < ---- =E17*EXP(Mean*Dt+Sigma*D18*SQRT(Dt)) | K18: 5 | L18: 0.07622290876 | M18: 34.23187307
C19: 6 | D19: -0.6523623597 | E19: 36.51738864 | F19: < ---- =E18*EXP(Mean*Dt+Sigma*D19*SQRT(Dt)) | K19: 6 | L19: 0.1687597074 | M19: 34.30473337 | AD19: =POWER(1/252,0.5) -> 0.06299407883 | AE19: =SQRT(1/252) -> 0.06299407883
C20: 7 | D20: -1.91057552 | E20: 35.64887392 | F20: < ---- =E19*EXP(Mean*Dt+Sigma*D20*SQRT(Dt)) | K20: 7 | L20: 0.3811968843 | M20: 34.46988254 | AD20: =B14 -> 0.2 | AF20: =B13*B15*B14 -> 0
C21: 8 | D21: -0.0304146397 | E21: 35.6352163 | F21: < ---- =E20*EXP(Mean*Dt+Sigma*D21*SQRT(Dt)) | K21: 8 | L21: -1.481400511 | M21: 33.83250683 | AD21: =D15 -> 1.387725206 | AE21: =EXP(AD21*AD20*AD19) -> 1.017637429 | AF21: =AE21*E14 -> 35.61731
C22: 9 | D22: 0.1596811217 | E22: 35.70697915 | F22: < ---- =E21*EXP(Mean*Dt+Sigma*D22*SQRT(Dt)) | K22: 9 | L22: 1.333377378 | M22: 34.40565901
C23: 10 | D23: 0.511053031 | E23: 35.93762608 | F23: < ---- =E22*EXP(Mean*Dt+Sigma*D23*SQRT(Dt)) | K23: 10 | L23: 1.403040977 | M23: 35.01924304
C24: 11 | D24: -0.9293876246 | E24: 35.51927985 | F24: < ---- =E23*EXP(Mean*Dt+Sigma*D24*SQRT(Dt)) | K24: 11 | L24: -2.000520909 | M24: 34.14764138
C25: 12 | D25: -1.363860065 | E25: 34.91416504 | F25: < ---- =E24*EXP(Mean*Dt+Sigma*D25*SQRT(Dt)) | K25: 12 | L25: -0.2493216942 | M25: 34.04054653
C26: 13 | D26: 0.9298037185 | E26: 35.32556941 | F26: < ---- =E25*EXP(Mean*Dt+Sigma*D26*SQRT(Dt)) | K26: 13 | L26: -0.3446048349 | M26: 33.89307602
C27: 14 | D27: -0.2727369974 | E27: 35.2043933 | F27: < ---- =E26*EXP(Mean*Dt+Sigma*D27*SQRT(Dt)) | K27: 14 | L27: 0.6092343304 | M27: 34.15422774
C28: 15 | D28: -0.742006705 | E28: 34.87682186 | F28: < ---- =E27*EXP(Mean*Dt+Sigma*D28*SQRT(Dt)) | K28: 15 | L28: 1.581716128 | M28: 34.84167151
C29: 16 | D29: 0.3313289199 | E29: 35.02271429 | F29: < ---- =E28*EXP(Mean*Dt+Sigma*D29*SQRT(Dt)) | K29: 16 | L29: -0.1001165346 | M29: 34.79775168
C30: 17 | D30: -0.004708908818 | E30: 35.02063657 | F30: < ---- =E29*EXP(Mean*Dt+Sigma*D30*SQRT(Dt)) | K30: 17 | L30: -0.2440161911 | M30: 34.6909367
C31: 18 | D31: -0.6442974154 | E31: 34.73751127 | F31: < ---- =E30*EXP(Mean*Dt+Sigma*D31*SQRT(Dt)) | K31: 18 | L31: 0.03735538658 | M31: 34.70726727
C32: 19 | D32: 0.3626757916 | E32: 34.89660006 | F32: < ---- =E31*EXP(Mean*Dt+Sigma*D32*SQRT(Dt)) | K32: 19 | L32: 1.101601274 | M32: 35.1923232
C33: 20 | D33: -1.110990979 | E33: 34.41154898 | F33: < ---- =E32*EXP(Mean*Dt+Sigma*D33*SQRT(Dt)) | K33: 20 | L33: -0.5724458576 | M33: 34.93942431
C34: 21 | D34: -0.7844778338 | E34: 34.07311792 | F34: < ---- =E33*EXP(Mean*Dt+Sigma*D34*SQRT(Dt)) | K34: 21 | L34: -0.4406929831 | M34: 34.74597084
C35: 22 | D35: -0.5888364285 | E35: 33.82127698 | F35: < ---- =E34*EXP(Mean*Dt+Sigma*D35*SQRT(Dt)) | K35: 22 | L35: -0.03870469105 | M35: 34.72903168
C36: 23 | D36: -0.5108586265 | E36: 33.60429504 | F36: < ---- =E35*EXP(Mean*Dt+Sigma*D36*SQRT(Dt)) | K36: 23 | L36: -1.142607611 | M36: 34.23267106
C37: 24 | D37: 1.365096978 | E37: 34.1872406 | F37: < ---- =E36*EXP(Mean*Dt+Sigma*D37*SQRT(Dt)) | K37: 24 | L37: -2.285183561 | M37: 33.26114422
C38: 25 | D38: 0.03233935786 | E38: 34.2011726 | F38: < ---- =E37*EXP(Mean*Dt+Sigma*D38*SQRT(Dt)) | K38: 25 | L38: -0.08266471511 | M38: 33.22652152
C39: 26 | D39: -0.257616648 | E39: 34.09034701 | F39: < ---- =E38*EXP(Mean*Dt+Sigma*D39*SQRT(Dt)) | K39: 26 | L39: 2.371511799 | M39: 34.23425114
C40: 27 | D40: -0.1975286068 | E40: 34.00561435 | F40: < ---- =E39*EXP(Mean*Dt+Sigma*D40*SQRT(Dt)) | K40: 27 | L40: -1.052122675 | M40: 33.78345341
C41: 28 | D41: 0.8154142961 | E41: 34.35676331 | F41: < ---- =E40*EXP(Mean*Dt+Sigma*D41*SQRT(Dt)) | K41: 28 | L41: -1.324854845 | M41: 33.22423357
C42: 29 | D42: -0.9701852832 | E42: 33.93937035 | F42: < ---- =E41*EXP(Mean*Dt+Sigma*D42*SQRT(Dt)) | K42: 29 | L42: 0.8558102556 | M42: 33.58440197
C43: 30 | D43: -0.6146115084 | E43: 33.67757988 | F43: < ---- =E42*EXP(Mean*Dt+Sigma*D43*SQRT(Dt)) | K43: 30 | L43: -0.5912282071 | M43: 33.3351687
C44: 31 | D44: -1.722960405 | E44: 32.9544093 | F44: < ---- =E43*EXP(Mean*Dt+Sigma*D44*SQRT(Dt)) | K44: 31 | L44: -0.1154432052 | M44: 33.28671969
C45: 32 | D45: -1.338289621 | E45: 32.40342754 | F45: < ---- =E44*EXP(Mean*Dt+Sigma*D45*SQRT(Dt)) | K45: 32 | L45: 0.369257082 | M45: 33.441937
C46: 33 | D46: -1.777461875 | E46: 31.68585259 | F46: < ---- =E45*EXP(Mean*Dt+Sigma*D46*SQRT(Dt)) | K46: 33 | L46: 2.192661256 | M46: 34.37864705
C47: 34 | D47: 1.367907316 | E47: 32.23665964 | F47: < ---- =E46*EXP(Mean*Dt+Sigma*D47*SQRT(Dt)) | K47: 34 | L47: -1.878391406 | M47: 33.57461042
C48: 35 | D48: 1.005200829 | E48: 32.64751175 | F48: < ---- =E47*EXP(Mean*Dt+Sigma*D48*SQRT(Dt)) | K48: 35 | L48: 0.8388491022 | M48: 33.93132552
C49: 36 | D49: -0.2942101673 | E49: 32.52672124 | F49: < ---- =E48*EXP(Mean*Dt+Sigma*D49*SQRT(Dt)) | K49: 36 | L49: -1.272582423 | M49: 33.39164146
C50: 37 | D50: -0.2372109975 | E50: 32.42965772 | F50: < ---- =E49*EXP(Mean*Dt+Sigma*D50*SQRT(Dt)) | K50: 37 | L50: 1.481199866 | M50: 34.02062564
C51: 38 | D51: 1.727116796 | E51: 33.14304836 | F51: < ---- =E50*EXP(Mean*Dt+Sigma*D51*SQRT(Dt)) | K51: 38 | L51: 0.02515412089 | M51: 34.0314089
C52: 39 | D52: -2.364540705 | E52: 32.17026502 | F52: < ---- =E51*EXP(Mean*Dt+Sigma*D52*SQRT(Dt)) | K52: 39 | L52: 2.083355509 | M52: 34.9364851
C53: 40 | D53: 1.063369837 | E53: 32.60415649 | F53: < ---- =E52*EXP(Mean*Dt+Sigma*D53*SQRT(Dt)) | K53: 40 | L53: 0.8314943676 | M53: 35.30439801
C54: 41 | D54: 1.172265911 | E54: 33.08926608 | F54: < ---- =E53*EXP(Mean*Dt+Sigma*D54*SQRT(Dt)) | K54: 41 | L54: -0.6826437167 | M54: 35.00206443
C55: 42 | D55: -0.4176968105 | E55: 32.91559169 | F55: < ---- =E54*EXP(Mean*Dt+Sigma*D55*SQRT(Dt)) | K55: 42 | L55: -0.3274019723 | M55: 34.85798258
C56: 43 | D56: 0.1028342922 | E56: 32.95826445 | F56: < ---- =E55*EXP(Mean*Dt+Sigma*D56*SQRT(Dt)) | K56: 43 | L56: -0.08559111393 | M56: 34.82041385
C57: 44 | D57: 1.348221303 | E57: 33.52287492 | F57: < ---- =E56*EXP(Mean*Dt+Sigma*D57*SQRT(Dt)) | K57: 44 | L57: 0.2416161992 | M57: 34.9265714
C58: 45 | D58: -0.9652421795 | E58: 33.1176751 | F58: < ---- =E57*EXP(Mean*Dt+Sigma*D58*SQRT(Dt)) | K58: 45 | L58: 0.009330015146 | M58: 34.93067716
C59: 46 | D59: -0.2609840521 | E59: 33.00896004 | F59: < ---- =E58*EXP(Mean*Dt+Sigma*D59*SQRT(Dt)) | K59: 46 | L59: 2.052166779 | M59: 35.84558172
C60: 47 | D60: 0.4254752639 | E60: 33.18637916 | F60: < ---- =E59*EXP(Mean*Dt+Sigma*D60*SQRT(Dt)) | K60: 47 | L60: -1.118272667 | M60: 35.34409748
C61: 48 | D61: 0.7348762665 | E61: 33.49506438 | F61: < ---- =E60*EXP(Mean*Dt+Sigma*D61*SQRT(Dt)) | K61: 48 | L61: 1.246816627 | M61: 35.90368073
C62: 49 | D62: 0.06227878657 | E62: 33.52135623 | F62: < ---- =E61*EXP(Mean*Dt+Sigma*D62*SQRT(Dt)) | K62: 49 | L62: -1.137371166 | M62: 35.39286647
C63: 50 | D63: 0.1621253887 | E63: 33.58989652 | F63: < ---- =E62*EXP(Mean*Dt+Sigma*D63*SQRT(Dt)) | K63: 50 | L63: -1.231170339 | M63: 34.84811335
C64: 51 | D64: -1.036589765 | E64: 33.15407116 | F64: < ---- =E63*EXP(Mean*Dt+Sigma*D64*SQRT(Dt)) | K64: 51 | L64: -0.1393716689 | M64: 34.78697661
C65: 52 | D65: -2.906454029 | E65: 31.96199819 | F65: < ---- =E64*EXP(Mean*Dt+Sigma*D65*SQRT(Dt)) | K65: 52 | L65: 0.01855837344 | M65: 34.79511123
C66: 53 | D66: -0.9853101801 | E66: 31.56768274 | F66: < ---- =E65*EXP(Mean*Dt+Sigma*D66*SQRT(Dt)) | K66: 53 | L66: -0.3858121359 | M66: 34.62639038
C67: 54 | D67: 0.07849394024 | E67: 31.59891643 | F67: < ---- =E66*EXP(Mean*Dt+Sigma*D67*SQRT(Dt)) | K67: 54 | L67: 0.3260587172 | M67: 34.76892655
C68: 55 | D68: 1.504499778 | E68: 32.20358383 | F68: < ---- =E67*EXP(Mean*Dt+Sigma*D68*SQRT(Dt)) | K68: 55 | L68: -0.9534066967 | M68: 34.3537876
C69: 56 | D69: 0.8516371963 | E69: 32.55097641 | F69: < ---- =E68*EXP(Mean*Dt+Sigma*D69*SQRT(Dt)) | K69: 56 | L69: -0.4445191529 | M69: 34.16192988
C70: 57 | D70: -0.1640023584 | E70: 32.48378787 | F70: < ---- =E69*EXP(Mean*Dt+Sigma*D70*SQRT(Dt)) | K70: 57 | L70: 2.014813138 | M70: 35.04020519
C71: 58 | D71: -2.165143087 | E71: 31.60966383 | F71: < ---- =E70*EXP(Mean*Dt+Sigma*D71*SQRT(Dt)) | K71: 58 | L71: -0.4305963967 | M71: 34.85062661
C72: 59 | D72: -0.3204218046 | E72: 31.48231488 | F72: < ---- =E71*EXP(Mean*Dt+Sigma*D72*SQRT(Dt)) | K72: 59 | L72: -0.3481255614 | M72: 34.69810753
C73: 60 | D73: -0.1265652827 | E73: 31.43215405 | F73: < ---- =E72*EXP(Mean*Dt+Sigma*D73*SQRT(Dt)) | K73: 60 | L73: -0.1378930847 | M73: 34.63787921
C74: 61 | D74: -1.041476025 | E74: 31.02241534 | F74: < ---- =E73*EXP(Mean*Dt+Sigma*D74*SQRT(Dt)) | K74: 61 | L74: 0.5913001489 | M74: 34.89688393
C75: 62 | D75: 1.016801434 | E75: 31.42238423 | F75: < ---- =E74*EXP(Mean*Dt+Sigma*D75*SQRT(Dt)) | K75: 62 | L75: -0.02248494636 | M75: 34.88699961
C76: 63 | D76: 0.3888385436 | E76: 31.57669719 | F76: < ---- =E75*EXP(Mean*Dt+Sigma*D76*SQRT(Dt)) | K76: 63 | L76: 0.2112042974 | M76: 34.97995489
C77: 64 | D77: 0.3848117558 | E77: 31.73015816 | F77: < ---- =E76*EXP(Mean*Dt+Sigma*D77*SQRT(Dt)) | K77: 64 | L77: 0.6262784789 | M77: 35.25705133
C78: 65 | D78: -2.29674697 | E78: =E77*EXP(Mean*Dt+Sigma*D78*SQRT(Dt)) -> 30.82516181 | F78: < ---- =E77*EXP(Mean*Dt+Sigma*D78*SQRT(Dt)) | K78: 65 | L78: -1.723700262 | M78: =M77*EXP(Mean*Dt+Sigma*L78*SQRT(Dt)) -> 34.49964262
C79: 66 | D79: -0.1436421826 | E79: 30.7694273 | F79: =show_formulaR(E79) -> < ---- =E78*EXP(Mean*Dt+Sigma*D79*SQRT(Dt)) | K79: =C79 -> 66 | L79: =NORMSINV(RAND()) -> -0.5254396531 | M79: 34.27201211
C80: 67 | D80: 1.026671725 | E80: 31.17001032 | F80: < ---- =E79*EXP(Mean*Dt+Sigma*D80*SQRT(Dt)) | K80: 67 | L80: 0.2463693777 | M80: 34.37855642
C81: 68 | D81: 0.2421825229 | E81: 31.2652619 | F81: < ---- =E80*EXP(Mean*Dt+Sigma*D81*SQRT(Dt)) | K81: 68 | L81: 1.442115848 | M81: 35.00888765
C82: 69 | D82: -0.2749538908 | E82: 31.15714348 | F82: < ---- =E81*EXP(Mean*Dt+Sigma*D82*SQRT(Dt)) | K82: 69 | L82: 0.7583322443 | M82: 35.34496856
C83: 70 | D83: 1.087219061 | E83: 31.58686018 | F83: < ---- =E82*EXP(Mean*Dt+Sigma*D83*SQRT(Dt)) | K83: 70 | L83: 0.8700306546 | M83: 35.7345285
C84: 71 | D84: -0.5398032954 | E84: 31.37277048 | F84: < ---- =E83*EXP(Mean*Dt+Sigma*D84*SQRT(Dt)) | K84: 71 | L84: 0.05911948905 | M84: 35.76115476
C85: 72 | D85: -1.117762167 | E85: 30.9340604 | F85: < ---- =E84*EXP(Mean*Dt+Sigma*D85*SQRT(Dt)) | K85: 72 | L85: -0.03426419551 | M85: 35.74572042
C86: 73 | D86: 1.725816219 | E86: 31.61403273 | F86: < ---- =E85*EXP(Mean*Dt+Sigma*D86*SQRT(Dt)) | K86: 73 | L86: 2.176603649 | M86: 36.73952613
C87: 74 | D87: 1.089968009 | E87: 32.05116082 | F87: < ---- =E86*EXP(Mean*Dt+Sigma*D87*SQRT(Dt)) | K87: 74 | L87: 0.5173725348 | M87: 36.97978689
C88: 75 | D88: -0.6653192486 | E88: 31.78362332 | F88: < ---- =E87*EXP(Mean*Dt+Sigma*D88*SQRT(Dt)) | K88: 75 | L88: -1.748658871 | M88: 36.17399289
C89: 76 | D89: -0.9568725545 | E89: 31.40275746 | F89: < ---- =E88*EXP(Mean*Dt+Sigma*D89*SQRT(Dt)) | K89: 76 | L89: -0.7277522283 | M89: 35.84383608
C90: 77 | D90: -1.525445441 | E90: 30.80499648 | F90: < ---- =E89*EXP(Mean*Dt+Sigma*D90*SQRT(Dt)) | K90: 77 | L90: 0.858327812 | M90: 36.23355162
C91: 78 | D91: 0.1802891347 | E91: 30.87504738 | F91: < ---- =E90*EXP(Mean*Dt+Sigma*D91*SQRT(Dt)) | K91: 78 | L91: 0.1687603451 | M91: 36.31067264
C92: 79 | D92: -0.5915967449 | E92: 30.64577822 | F92: < ---- =E91*EXP(Mean*Dt+Sigma*D92*SQRT(Dt)) | K92: 79 | L92: -0.9926403514 | M92: 35.85939574
C93: 80 | D93: -0.7803851076 | E93: 30.3459475 | F93: < ---- =E92*EXP(Mean*Dt+Sigma*D93*SQRT(Dt)) | K93: 80 | L93: -2.559768302 | M93: 34.72137766
C94: 81 | D94: -1.375360625 | E94: 29.82464508 | F94: < ---- =E93*EXP(Mean*Dt+Sigma*D94*SQRT(Dt)) | K94: 81 | L94: -1.4218669 | M94: 34.10492251
C95: 82 | D95: -0.8937672646 | E95: 29.49069114 | F95: < ---- =E94*EXP(Mean*Dt+Sigma*D95*SQRT(Dt)) | K95: 82 | L95: -0.6770018976 | M95: 33.81526429
C96: 83 | D96: -0.8371262084 | E96: 29.18129319 | F96: < ---- =E95*EXP(Mean*Dt+Sigma*D96*SQRT(Dt)) | K96: 83 | L96: -0.9918243307 | M96: 33.39534419
C97: 84 | D97: 0.8108020211 | E97: 29.48091206 | F97: < ---- =E96*EXP(Mean*Dt+Sigma*D97*SQRT(Dt)) | K97: 84 | L97: -0.4509727093 | M97: 33.20613914
C98: 85 | D98: -0.9170230442 | E98: 29.14226718 | F98: < ---- =E97*EXP(Mean*Dt+Sigma*D98*SQRT(Dt)) | K98: 85 | L98: -0.5013753942 | M98: 32.99704581
C99: 86 | D99: 0.5876677278 | E99: 29.35883486 | F99: < ---- =E98*EXP(Mean*Dt+Sigma*D99*SQRT(Dt)) | K99: 86 | L99: 2.151240487 | M99: 33.90359714
C100: 87 | D100: -0.6280379239 | E100: 29.12744871 | F100: < ---- =E99*EXP(Mean*Dt+Sigma*D100*SQRT(Dt)) | K100: 87 | L100: 0.5555285979 | M100: 34.14172084
C101: 88 | D101: 0.4421781341 | E101: 29.29016825 | F101: < ---- =E100*EXP(Mean*Dt+Sigma*D101*SQRT(Dt)) | K101: 88 | L101: 1.045835922 | M101: 34.59455901
C102: 89 | D102: -0.4326363978 | E102: 29.13095046 | F102: < ---- =E101*EXP(Mean*Dt+Sigma*D102*SQRT(Dt)) | K102: 89 | L102: 0.451087773 | M102: 34.79172557
C103: 90 | D103: -1.526741471 | E103: 28.57596741 | F103: < ---- =E102*EXP(Mean*Dt+Sigma*D103*SQRT(Dt)) | K103: 90 | L103: -0.8492393563 | M103: 34.42145897
C104: 91 | D104: 2.324632078 | E104: 29.42526548 | F104: < ---- =E103*EXP(Mean*Dt+Sigma*D104*SQRT(Dt)) | K104: 91 | L104: -1.320180377 | M104: 33.85367186
C105: 92 | D105: 0.1318903742 | E105: 29.47420099 | F105: < ---- =E104*EXP(Mean*Dt+Sigma*D105*SQRT(Dt)) | K105: 92 | L105: -0.6144127454 | M105: 33.59262655
C106: 93 | D106: 1.796815923 | E106: 30.14904027 | F106: < ---- =E105*EXP(Mean*Dt+Sigma*D106*SQRT(Dt)) | K106: 93 | L106: 0.6608533039 | M106: 33.8734853
C107: 94 | D107: 1.093221726 | E107: 30.56716489 | F107: < ---- =E106*EXP(Mean*Dt+Sigma*D107*SQRT(Dt)) | K107: 94 | L107: 0.7739689245 | M107: 34.20540443
C108: 95 | D108: -0.5951051207 | E108: 30.33884092 | F108: < ---- =E107*EXP(Mean*Dt+Sigma*D108*SQRT(Dt)) | K108: 95 | L108: -0.720052116 | M108: 33.89650297
C109: 96 | D109: 0.5035076356 | E109: 30.53191012 | F109: < ---- =E108*EXP(Mean*Dt+Sigma*D109*SQRT(Dt)) | K109: 96 | L109: 0.2441175906 | M109: 34.00091528
C110: 97 | D110: -0.9149471225 | E110: 30.18198188 | F110: < ---- =E109*EXP(Mean*Dt+Sigma*D110*SQRT(Dt)) | K110: 97 | L110: 0.2510161608 | M110: 34.1086136
C111: 98 | D111: -1.477401383 | E111: 29.6253855 | F111: < ---- =E110*EXP(Mean*Dt+Sigma*D111*SQRT(Dt)) | K111: 98 | L111: 0.8399898498 | M111: 34.47149767
C112: 99 | D112: 0.152068651 | E112: 29.68219874 | F112: < ---- =E111*EXP(Mean*Dt+Sigma*D112*SQRT(Dt)) | K112: 99 | L112: -1.093386822 | M112: 33.99989543
C113: 100 | D113: -0.7367998478 | E113: 29.40793957 | F113: < ---- =E112*EXP(Mean*Dt+Sigma*D113*SQRT(Dt)) | K113: 100 | L113: 0.1045054846 | M113: 34.04469072
C114: 101 | D114: -1.041421456 | E114: 29.02460778 | F114: < ---- =E113*EXP(Mean*Dt+Sigma*D114*SQRT(Dt)) | K114: 101 | L114: 0.2655827066 | M114: 34.15879598
C115: 102 | D115: 1.835187504 | E115: 29.70350949 | F115: < ---- =E114*EXP(Mean*Dt+Sigma*D115*SQRT(Dt)) | K115: 102 | L115: 0.9345769874 | M115: 34.5633781
C116: 103 | D116: 0.7518565326 | E116: 29.98621289 | F116: < ---- =E115*EXP(Mean*Dt+Sigma*D116*SQRT(Dt)) | K116: 103 | L116: 1.488509351 | M116: 35.21767687
C117: 104 | D117: 2.466877049 | E117: 30.93281007 | F117: < ---- =E116*EXP(Mean*Dt+Sigma*D117*SQRT(Dt)) | K117: 104 | L117: -0.1464646673 | M117: 35.15275027
C118: 105 | D118: -0.5747574505 | E118: 30.70962649 | F118: < ---- =E117*EXP(Mean*Dt+Sigma*D118*SQRT(Dt)) | K118: 105 | L118: 0.4099795107 | M118: 35.33479298
C119: 106 | D119: 1.165456069 | E119: 31.16387396 | F119: < ---- =E118*EXP(Mean*Dt+Sigma*D119*SQRT(Dt)) | K119: 106 | L119: 1.134426447 | M119: 35.84343926
C120: 107 | D120: 1.093587798 | E120: 31.59621861 | F120: < ---- =E119*EXP(Mean*Dt+Sigma*D120*SQRT(Dt)) | K120: 107 | L120: -0.9642339381 | M120: 35.41063998
C121: 108 | D121: -1.488542694 | E121: 31.00918882 | F121: < ---- =E120*EXP(Mean*Dt+Sigma*D121*SQRT(Dt)) | K121: 108 | L121: -1.655297632 | M121: 34.67980571
C122: 109 | D122: -1.925754987 | E122: 30.26589018 | F122: < ---- =E121*EXP(Mean*Dt+Sigma*D122*SQRT(Dt)) | K122: 109 | L122: 1.147757366 | M122: 35.18493236
C123: 110 | D123: -1.745797817 | E123: 29.60746 | F123: < ---- =E122*EXP(Mean*Dt+Sigma*D123*SQRT(Dt)) | K123: 110 | L123: 0.01667582285 | M123: 35.19232534
C124: 111 | D124: -0.8194149359 | E124: 29.30337505 | F124: < ---- =E123*EXP(Mean*Dt+Sigma*D124*SQRT(Dt)) | K124: 111 | L124: -0.1064120794 | M124: 35.14517579
C125: 112 | D125: -1.795860953 | E125: 28.64780935 | F125: < ---- =E124*EXP(Mean*Dt+Sigma*D125*SQRT(Dt)) | K125: 112 | L125: 0.4046988174 | M125: 35.32482902
C126: 113 | D126: -0.5218680599 | E126: 28.46007017 | F126: < ---- =E125*EXP(Mean*Dt+Sigma*D126*SQRT(Dt)) | K126: 113 | L126: 0.100453412 | M126: 35.36956421
C127: 114 | D127: -0.9707196114 | E127: 28.1141256 | F127: < ---- =E126*EXP(Mean*Dt+Sigma*D127*SQRT(Dt)) | K127: 114 | L127: -0.3541293342 | M127: 35.21211051
C128: 115 | D128: 1.802645784 | E128: 28.75993701 | F128: < ---- =E127*EXP(Mean*Dt+Sigma*D128*SQRT(Dt)) | K128: 115 | L128: -0.2686385524 | M128: 35.0931356
C129: 116 | D129: -0.2848491931 | E129: 28.65690941 | F129: < ---- =E128*EXP(Mean*Dt+Sigma*D129*SQRT(Dt)) | K129: 116 | L129: -1.818569414 | M129: 34.29822911
C130: 117 | D130: 0.2087517714 | E130: 28.732377 | F130: < ---- =E129*EXP(Mean*Dt+Sigma*D130*SQRT(Dt)) | K130: 117 | L130: 0.00265090522 | M130: 34.29937463
C131: 118 | D131: 0.5219931154 | E131: 28.92195804 | F131: < ---- =E130*EXP(Mean*Dt+Sigma*D131*SQRT(Dt)) | K131: 118 | L131: 1.16824709 | M131: 34.80794452
C132: 119 | D132: 0.4788421393 | E132: 29.09696707 | F132: < ---- =E131*EXP(Mean*Dt+Sigma*D132*SQRT(Dt)) | K132: 119 | L132: 0.9410710316 | M132: 35.223097
C133: 120 | D133: 0.06240156836 | E133: 29.11985169 | F133: < ---- =E132*EXP(Mean*Dt+Sigma*D133*SQRT(Dt)) | K133: 120 | L133: 2.068681714 | M133: 36.15318218
C134: 121 | D134: -1.717157829 | E134: 28.496634 | F134: < ---- =E133*EXP(Mean*Dt+Sigma*D134*SQRT(Dt)) | K134: 121 | L134: 0.2343614322 | M134: 36.26008859
C135: 122 | D135: -0.6141078757 | E135: 28.27700536 | F135: < ---- =E134*EXP(Mean*Dt+Sigma*D135*SQRT(Dt)) | K135: 122 | L135: -2.162088289 | M135: 35.28570401
C136: 123 | D136: 0.4593357517 | E136: 28.44112126 | F136: < ---- =E135*EXP(Mean*Dt+Sigma*D136*SQRT(Dt)) | K136: 123 | L136: 0.6645153274 | M136: 35.58235976
C137: 124 | D137: -1.540715857 | E137: 27.89436883 | F137: < ---- =E136*EXP(Mean*Dt+Sigma*D137*SQRT(Dt)) | K137: 124 | L137: 1.235202248 | M137: 36.14042656
C138: 125 | D138: -1.298108145 | E138: 27.44187713 | F138: < ---- =E137*EXP(Mean*Dt+Sigma*D138*SQRT(Dt)) | K138: 125 | L138: 0.6101320341 | M138: 36.41930639
C139: 126 | D139: -1.407020136 | E139: 26.95970709 | F139: < ---- =E138*EXP(Mean*Dt+Sigma*D139*SQRT(Dt)) | K139: 126 | L139: -0.5913528382 | M139: 36.14897824
C140: 127 | D140: -1.626867743 | E140: 26.41274911 | F140: < ---- =E139*EXP(Mean*Dt+Sigma*D140*SQRT(Dt)) | K140: 127 | L140: -0.06200251703 | M140: 36.12075119
C141: 128 | D141: 0.6683012543 | E141: 26.63607817 | F141: < ---- =E140*EXP(Mean*Dt+Sigma*D141*SQRT(Dt)) | K141: 128 | L141: 1.690765103 | M141: 36.89843593
C142: 129 | D142: 0.27519377 | E142: =E141*EXP(Mean*Dt+Sigma*D142*SQRT(Dt)) -> 26.72858881 | F142: < ---- =E141*EXP(Mean*Dt+Sigma*D142*SQRT(Dt)) | K142: 129 | L142: 0.02415291387 | M142: =M141*EXP(Mean*Dt+Sigma*L142*SQRT(Dt)) -> 36.90966577
C143: 130 | D143: -0.08289248399 | E143: 26.70068945 | F143: =show_formulaR(E143) -> < ---- =E142*EXP(Mean*Dt+Sigma*D143*SQRT(Dt)) | K143: =C143 -> 130 | L143: =NORMSINV(RAND()) -> 1.117094214 | M143: 37.4328075
C144: 131 | D144: -0.5017466265 | E144: 26.53243572 | F144: < ---- =E143*EXP(Mean*Dt+Sigma*D144*SQRT(Dt)) | K144: 131 | L144: -1.698758096 | M144: 36.64017022
C145: 132 | D145: -0.4625189831 | E145: 26.37827574 | F145: < ---- =E144*EXP(Mean*Dt+Sigma*D145*SQRT(Dt)) | K145: 132 | L145: -0.2862809492 | M145: 36.50825446
C146: 133 | D146: -1.067044195 | E146: 26.02603256 | F146: < ---- =E145*EXP(Mean*Dt+Sigma*D146*SQRT(Dt)) | K146: 133 | L146: -0.8759079502 | M146: 36.107586
C147: 134 | D147: -0.3046147867 | E147: 25.92634164 | F147: < ---- =E146*EXP(Mean*Dt+Sigma*D147*SQRT(Dt)) | K147: 134 | L147: -0.3171525478 | M147: 35.9635971
C148: 135 | D148: -0.181237283 | E148: 25.86720962 | F148: < ---- =E147*EXP(Mean*Dt+Sigma*D148*SQRT(Dt)) | K148: 135 | L148: 1.511321828 | M148: 36.65493607
C149: 136 | D149: -0.0248348897 | E149: 25.85911729 | F149: < ---- =E148*EXP(Mean*Dt+Sigma*D149*SQRT(Dt)) | K149: 136 | L149: 0.5332671194 | M149: 36.90203264
C150: 137 | D150: -0.2070976279 | E150: 25.79173401 | F150: < ---- =E149*EXP(Mean*Dt+Sigma*D150*SQRT(Dt)) | K150: 137 | L150: -0.8400253752 | M150: 36.51354581
C151: 138 | D151: -1.526150299 | E151: 25.30055588 | F151: < ---- =E150*EXP(Mean*Dt+Sigma*D151*SQRT(Dt)) | K151: 138 | L151: -0.724422633 | M151: 36.18180769
C152: 139 | D152: 0.5541687642 | E152: 25.47781917 | F152: < ---- =E151*EXP(Mean*Dt+Sigma*D152*SQRT(Dt)) | K152: 139 | L152: 1.493021615 | M152: 36.86883988
C153: 140 | D153: 0.6879326975 | E153: 25.69959864 | F153: < ---- =E152*EXP(Mean*Dt+Sigma*D153*SQRT(Dt)) | K153: 140 | L153: 0.3547530815 | M153: 37.03399281
C154: 141 | D154: 0.5906235856 | E154: 25.89154668 | F154: < ---- =E153*EXP(Mean*Dt+Sigma*D154*SQRT(Dt)) | K154: 141 | L154: 0.001690697082 | M154: 37.03478167
C155: 142 | D155: -3.171153367 | E155: 24.87749937 | F155: < ---- =E154*EXP(Mean*Dt+Sigma*D155*SQRT(Dt)) | K155: 142 | L155: -1.8594165 | M155: 36.17727178
C156: 143 | D156: 0.4412368071 | E156: 25.01618003 | F156: < ---- =E155*EXP(Mean*Dt+Sigma*D156*SQRT(Dt)) | K156: 143 | L156: -0.01098525852 | M156: 36.17226515
C157: 144 | D157: 2.264350769 | E157: 25.74012233 | F157: < ---- =E156*EXP(Mean*Dt+Sigma*D157*SQRT(Dt)) | K157: 144 | L157: -0.3675545408 | M157: 36.0051476
C158: 145 | D158: 0.1439627795 | E158: 25.78685111 | F158: < ---- =E157*EXP(Mean*Dt+Sigma*D158*SQRT(Dt)) | K158: 145 | L158: -0.1317359782 | M158: 35.9454388
C159: 146 | D159: 0.9063410289 | E159: 26.0829942 | F159: < ---- =E158*EXP(Mean*Dt+Sigma*D159*SQRT(Dt)) | K159: 146 | L159: -1.258897911 | M159: 35.37981914
C160: 147 | D160: -1.40334123 | E160: 25.62588828 | F160: < ---- =E159*EXP(Mean*Dt+Sigma*D160*SQRT(Dt)) | K160: 147 | L160: -0.09358791516 | M160: 35.33812749
C161: 148 | D161: -0.204574917 | E161: 25.55992511 | F161: < ---- =E160*EXP(Mean*Dt+Sigma*D161*SQRT(Dt)) | K161: 148 | L161: 0.5218356947 | M161: 35.57122384
C162: 149 | D162: 0.6358573046 | E162: 25.7655093 | F162: < ---- =E161*EXP(Mean*Dt+Sigma*D162*SQRT(Dt)) | K162: 149 | L162: -0.2074869464 | M162: 35.47835889
C163: 150 | D163: 1.004664227 | E163: 26.09371102 | F163: < ---- =E162*EXP(Mean*Dt+Sigma*D163*SQRT(Dt)) | K163: 150 | L163: 1.302349872 | M163: 36.0652922
C164: 151 | D164: -1.191426691 | E164: 25.70495469 | F164: < ---- =E163*EXP(Mean*Dt+Sigma*D164*SQRT(Dt)) | K164: 151 | L164: -1.379978872 | M164: 35.44367684
C165: 152 | D165: 0.6583047707 | E165: 25.91903454 | F165: < ---- =E164*EXP(Mean*Dt+Sigma*D165*SQRT(Dt)) | K165: 152 | L165: -0.9083036602 | M165: 35.04038726
C166: 153 | D166: -0.9323616723 | E166: 25.61635386 | F166: < ---- =E165*EXP(Mean*Dt+Sigma*D166*SQRT(Dt)) | K166: 153 | L166: 1.133987908 | M166: 35.54459918
C167: 154 | D167: 0.079178335 | E167: 25.64192029 | F167: < ---- =E166*EXP(Mean*Dt+Sigma*D167*SQRT(Dt)) | K167: 154 | L167: -0.6480806683 | M167: 35.25555741
C168: 155 | D168: 0.2829017376 | E168: 25.73347698 | F168: < ---- =E167*EXP(Mean*Dt+Sigma*D168*SQRT(Dt)) | K168: 155 | L168: 0.3212999644 | M168: 35.39856112
C169: 156 | D169: 0.03403556548 | E169: 25.74451406 | F169: < ---- =E168*EXP(Mean*Dt+Sigma*D169*SQRT(Dt)) | K169: 156 | L169: 1.685381891 | M169: 36.15824459
C170: 157 | D170: -1.762468855 | E170: 25.17915672 | F170: < ---- =E169*EXP(Mean*Dt+Sigma*D170*SQRT(Dt)) | K170: 157 | L170: 0.3193760177 | M170: 36.30402978
C171: 158 | D171: -0.9107566257 | E171: 24.89189088 | F171: < ---- =E170*EXP(Mean*Dt+Sigma*D171*SQRT(Dt)) | K171: 158 | L171: -0.3026572945 | M171: 36.16586163
C172: 159 | D172: 1.251969479 | E172: 25.28763183 | F172: < ---- =E171*EXP(Mean*Dt+Sigma*D172*SQRT(Dt)) | K172: 159 | L172: -0.5120036865 | M172: 35.9333195
C173: 160 | D173: -1.030346084 | E173: 24.96149095 | F173: < ---- =E172*EXP(Mean*Dt+Sigma*D173*SQRT(Dt)) | K173: 160 | L173: 0.06884353556 | M173: 35.96449968
C174: 161 | D174: -0.4040362001 | E174: 24.83475039 | F174: < ---- =E173*EXP(Mean*Dt+Sigma*D174*SQRT(Dt)) | K174: 161 | L174: -0.694925612 | M174: 35.65099626
C175: 162 | D175: 0.6003472208 | E175: 25.02330427 | F175: < ---- =E174*EXP(Mean*Dt+Sigma*D175*SQRT(Dt)) | K175: 162 | L175: 0.948447033 | M175: 36.07955645
C176: 163 | D176: 1.331391104 | E176: 25.44658407 | F176: < ---- =E175*EXP(Mean*Dt+Sigma*D176*SQRT(Dt)) | K176: 163 | L176: 0.6063131407 | M176: 36.35621729
C177: 164 | D177: -0.5486958798 | E177: 25.27128054 | F177: < ---- =E176*EXP(Mean*Dt+Sigma*D177*SQRT(Dt)) | K177: 164 | L177: -1.920596665 | M177: 35.48705512
C178: 165 | D178: -1.362245712 | E178: 24.8412583 | F178: < ---- =E177*EXP(Mean*Dt+Sigma*D178*SQRT(Dt)) | K178: 165 | L178: -0.2653087438 | M178: 35.36863497
C179: 166 | D179: -0.4672415344 | E179: 24.69545508 | F179: < ---- =E178*EXP(Mean*Dt+Sigma*D179*SQRT(Dt)) | K179: 166 | L179: 0.4609611025 | M179: 35.57463819
C180: 167 | D180: 0.09109157872 | E180: 24.72381299 | F180: < ---- =E179*EXP(Mean*Dt+Sigma*D180*SQRT(Dt)) | K180: 167 | L180: 0.1461391474 | M180: 35.64019784
C181: 168 | D181: -1.18322987 | E181: 24.35798137 | F181: < ---- =E180*EXP(Mean*Dt+Sigma*D181*SQRT(Dt)) | K181: 168 | L181: -0.1448182047 | M181: 35.57523024
C182: 169 | D182: 0.2909428076 | E182: 24.44743024 | F182: < ---- =E181*EXP(Mean*Dt+Sigma*D182*SQRT(Dt)) | K182: 169 | L182: -0.1559432771 | M182: 35.50540418
C183: 170 | D183: 0.660703563 | E183: 24.651782 | F183: < ---- =E182*EXP(Mean*Dt+Sigma*D183*SQRT(Dt)) | K183: 170 | L183: -0.3663080277 | M183: 35.34192258
C184: 171 | D184: 0.6357004168 | E184: 24.85001267 | F184: < ---- =E183*EXP(Mean*Dt+Sigma*D184*SQRT(Dt)) | K184: 171 | L184: -0.590773186 | M184: 35.07984768
C185: 172 | D185: -0.4160551725 | E185: 24.72009461 | F185: < ---- =E184*EXP(Mean*Dt+Sigma*D185*SQRT(Dt)) | K185: 172 | L185: 0.05093478656 | M185: 35.10236627
C186: 173 | D186: -0.1577063813 | E186: 24.67102668 | F186: < ---- =E185*EXP(Mean*Dt+Sigma*D186*SQRT(Dt)) | K186: 173 | L186: 0.427832672 | M186: 35.29208537
C187: 174 | D187: -0.3404250037 | E187: 24.56544043 | F187: < ---- =E186*EXP(Mean*Dt+Sigma*D187*SQRT(Dt)) | K187: 174 | L187: -1.3187486 | M187: 34.71056327
C188: 175 | D188: -0.6949960607 | E188: 24.35128127 | F188: < ---- =E187*EXP(Mean*Dt+Sigma*D188*SQRT(Dt)) | K188: 175 | L188: -1.333313135 | M188: 34.13235943
C189: 176 | D189: 1.328712642 | E189: 24.76235789 | F189: < ---- =E188*EXP(Mean*Dt+Sigma*D189*SQRT(Dt)) | K189: 176 | L189: 1.104968249 | M189: 34.61084882
C190: 177 | D190: 1.737089406 | E190: 25.31026241 | F190: < ---- =E189*EXP(Mean*Dt+Sigma*D190*SQRT(Dt)) | K190: 177 | L190: -0.6936388915 | M190: 34.3097014
C191: 178 | D191: 0.6097684491 | E191: 25.50545377 | F191: < ---- =E190*EXP(Mean*Dt+Sigma*D191*SQRT(Dt)) | K191: 178 | L191: -0.1685466969 | M191: 34.23692244
C192: 179 | D192: 0.3765399015 | E192: 25.626738 | F192: < ---- =E191*EXP(Mean*Dt+Sigma*D192*SQRT(Dt)) | K192: 179 | L192: 1.092617558 | M192: 34.71147599
C193: 180 | D193: 1.104167495 | E193: 25.98572795 | F193: < ---- =E192*EXP(Mean*Dt+Sigma*D193*SQRT(Dt)) | K193: 180 | L193: -2.140473261 | M193: 33.78790588
C194: 181 | D194: 0.6134700925 | E194: 26.18734972 | F194: < ---- =E193*EXP(Mean*Dt+Sigma*D194*SQRT(Dt)) | K194: 181 | L194: 1.17604714 | M194: 34.29226181
C195: 182 | D195: 0.4507978701 | E195: 26.33650444 | F195: < ---- =E194*EXP(Mean*Dt+Sigma*D195*SQRT(Dt)) | K195: 182 | L195: -1.650128574 | M195: 33.58669679
C196: 183 | D196: 1.285714006 | E196: 26.76658958 | F196: < ---- =E195*EXP(Mean*Dt+Sigma*D196*SQRT(Dt)) | K196: 183 | L196: 0.1423122287 | M196: 33.64697059
C197: 184 | D197: -0.6237655725 | E197: 26.55706316 | F197: < ---- =E196*EXP(Mean*Dt+Sigma*D197*SQRT(Dt)) | K197: 184 | L197: -0.1746936119 | M197: 33.57299731
C198: 185 | D198: -0.1649232217 | E198: 26.50193919 | F198: < ---- =E197*EXP(Mean*Dt+Sigma*D198*SQRT(Dt)) | K198: 185 | L198: 0.5119996453 | M198: 33.79026292
C199: 186 | D199: -0.1086129942 | E199: 26.46569887 | F199: < ---- =E198*EXP(Mean*Dt+Sigma*D199*SQRT(Dt)) | K199: 186 | L199: -1.35495631 | M199: 33.21833016
C200: 187 | D200: 2.882006811 | E200: 27.4443244 | F200: < ---- =E199*EXP(Mean*Dt+Sigma*D200*SQRT(Dt)) | K200: 187 | L200: 1.089745177 | M200: 33.67754637
C201: 188 | D201: 0.8610095392 | E201: 27.74365279 | F201: < ---- =E200*EXP(Mean*Dt+Sigma*D201*SQRT(Dt)) | K201: 188 | L201: 0.6785055598 | M201: 33.96666838
C202: 189 | D202: 1.200144197 | E202: 28.16633531 | F202: < ---- =E201*EXP(Mean*Dt+Sigma*D202*SQRT(Dt)) | K202: 189 | L202: -0.4800892487 | M202: 33.76183917
C203: 190 | D203: -0.2892306838 | E203: 28.06388497 | F203: < ---- =E202*EXP(Mean*Dt+Sigma*D203*SQRT(Dt)) | K203: 190 | L203: 0.3493313088 | M203: 33.91075792
... 60 more rows

Sheet Log Normal
A1: The Lognormal Histogram
J2: start | K2: 0
J3: step | K3: 0.15
D4: List of 1000 normally | E4: Lognormal | K4: Bins | L4: Frequency | O4: Normal | P4: Lognormal
D5: distributed numbers | E5: exp(mDt+s Z ÖDt) | K5: =$K$2 -> 0 | L5: =FREQUENCY(E6:E1005,K5:K21) -> 0 | M5: =L5/SUM($L$5:$L$21) -> 0 | O5: =+M5 -> 0 | P5: =N32 -> 0
A6: Mean | B6: 0 | D6: 0.7261110113 | E6: =EXP($B$6*$B$8+$B$7*D6*SQRT($B$8)) -> 1.156296473 | F6: <-- =EXP($B$6*$B$8+$B$7*E6*SQRT($B$8)) | K6: =K5+$K$3 -> 0.15 | L6: 0 | M6: =L6/SUM($L$5:$L$21) -> 0 | O6: =+M6 -> 0 | P6: =N33 -> 0
A7: Sigma | B7: 0.2 | D7: -0.75691446 | E7: =EXP($B$6*$B$8+$B$7*D7*SQRT($B$8)) -> 0.8595185329 | K7: 0.3 | L7: 0 | M7: 0 | O7: 0 | P7: 0
A8: Dt | B8: 1 | D8: 0.0544514478 | E8: 1.010949805 | K8: 0.45 | L8: 0 | M8: 0 | O8: 0 | P8: 0.003
D9: 1.616244845 | E9: 1.381609286 | K9: 0.6 | L9: 2 | M9: 0.002 | O9: 0.002 | P9: 0.012
D10: -0.009147242963 | E10: 0.9981722238 | K10: 0.75 | L10: 78 | M10: 0.078 | O10: 0.078 | P10: 0.06
A11: We used Tools|Data | D11: 1.130981673 | E11: 1.25382181 | K11: 0.9 | L11: 227 | M11: 0.227 | O11: 0.227 | P11: 0.096
A12: Analysis|RandomNumber | D12: 2.550623321 | E12: 1.66549881 | K12: 1.05 | L12: 294 | M12: 0.294 | O12: 0.294 | P12: 0.147
A13: Generation to produce the list of | D13: -0.2306785518 | E13: 0.9549123619 | K13: 1.2 | L13: 216 | M13: 0.216 | O13: 0.216 | P13: 0.183
A14: 1,000 normally distributed random | D14: 1.092166713 | E14: 1.244126084 | K14: 1.35 | L14: 117 | M14: 0.117 | O14: 0.117 | P14: 0.191
A15: numbers(with mean =0 and | D15: -2.794113243 | E15: 0.5718819737 | K15: 1.5 | L15: 42 | M15: 0.042 | O15: 0.042 | P15: 0.143
A16: standard deviation = 1) onthe | D16: 0.7245989764 | E16: 1.155946854 | K16: 1.65 | L16: 15 | M16: 0.015 | O16: 0.015 | P16: 0.099
A17: right. | D17: 0.4331377568 | E17: 1.090490452 | K17: 1.8 | L17: 7 | M17: 0.007 | O17: 0.007 | P17: 0.041
D18: -1.047612841 | E18: 0.8109713371 | K18: 1.95 | L18: 1 | M18: 0.001 | O18: 0.001 | P18: 0.015
D19: 1.33371941 | E19: 1.305705989 | K19: 2.1 | L19: 1 | M19: 0.001 | O19: 0.001 | P19: 0.008
D20: -1.690195859 | E20: 0.7131673513 | K20: 2.25 | L20: 0 | M20: 0 | O20: 0 | P20: 0.001
D21: -2.084398147 | E21: 0.6591002514 | J21: =COUNT(K5:K21) -> 17 | K21: 2.4 | L21: 0 | M21: 0 | O21: 0 | P21: 0.001
D22: 0.02291471901 | E22: 1.004593462
D23: -0.04597723091 | E23: =EXP($B$6*$B$8+$B$7*D23*SQRT($B$8)) -> 0.9908467026
D24: 0.3448417374 | E24: 1.071402296
D25: -0.001750777301 | E25: 0.9996499058 | J25: Count
D26: 1.038474693 | E26: 1.230837631 | J26: Low | K26: -4
D27: 0.6097661753 | E27: 1.12970127 | J27: High | K27: 4
D28: 0.3563718565 | E28: 1.073875826 | J28: Difference | K28: =(K27-K26)/($J$21-1) -> 0.5
D29: 2.100914571 | E29: 1.52223997
D30: -0.9892005437 | E30: 0.8205010336
D31: -0.9607265383 | E31: 0.8251869538 | M31: Frequency | N31: Prob
D32: 0.06184109225 | E32: 1.012445021 | K32: 1 | L32: =K26 -> -4 | M32: =FREQUENCY(D:D,L32:L48) -> 0 | N32: =M32/SUM($M$32:$M$48) -> 0
D33: 1.053376764 | E33: 1.234511509 | K33: =K32+1 -> 2 | L33: =L32+$K$28 -> -3.5 | M33: 0 | N33: =M33/SUM($M$32:$M$48) -> 0
D34: 0.04578851076 | E34: 1.009199762 | K34: =K33+1 -> 3 | L34: =L33+$K$28 -> -3 | M34: 0 | N34: 0
D35: -1.639177754 | E35: 0.7204814926 | K35: 4 | L35: -2.5 | M35: 3 | N35: 0.003
D36: -1.770149538 | E36: 0.7018539763 | K36: 5 | L36: -2 | M36: 12 | N36: 0.012
D37: 1.069902282 | E37: 1.238598448 | K37: 6 | L37: -1.5 | M37: 60 | N37: 0.06
D38: -0.3338448096 | E38: 0.935411292 | K38: 7 | L38: -1 | M38: 96 | N38: 0.096
D39: 0.2528031473 | E39: =EXP($B$6*$B$8+$B$7*D39*SQRT($B$8)) -> 1.051860635 | K39: 8 | L39: -0.5 | M39: 147 | N39: 0.147
D40: 0.6725508683 | E40: 1.143976297 | K40: 9 | L40: 0 | M40: 183 | N40: 0.183
D41: 1.317932856 | E41: 1.30158997 | K41: 10 | L41: 0.5 | M41: 191 | N41: 0.191
D42: -0.3483683031 | E42: 0.9326981464 | K42: 11 | L42: 1 | M42: 143 | N42: 0.143
D43: 1.362727744 | E43: 1.313303277 | K43: 12 | L43: 1.5 | M43: 99 | N43: 0.099
D44: 1.026603513 | E44: 1.227918799 | K44: 13 | L44: 2 | M44: 41 | N44: 0.041
D45: -0.1564194463 | E45: 0.9692003884 | K45: 14 | L45: 2.5 | M45: 15 | N45: 0.015
D46: -0.3989180186 | E46: 0.9233161269 | K46: 15 | L46: 3 | M46: 8 | N46: 0.008
D47: -0.7366134014 | E47: 0.8630154544 | K47: 16 | L47: 3.5 | M47: 1 | N47: 0.001
D48: 0.5375852652 | E48: 1.113509849 | K48: 17 | L48: 4 | M48: 1 | N48: 0.001
D49: 0.759073373 | E49: 1.163944508
D50: -0.6749473869 | E50: 0.8737251055
D51: -1.821117621 | E51: 0.6947358871
D52: -2.084361768 | E52: 0.659105047
D53: 0.06464460967 | E53: 1.013012862
D54: 0.9016912372 | E54: 1.197622387
D55: 1.906601028 | E55: =EXP($B$6*$B$8+$B$7*D55*SQRT($B$8)) -> 1.464216381
D56: -0.214853344 | E56: 0.9579394872
D57: -0.3963657491 | E57: 0.9237875576
D58: -0.08048573363 | E58: 0.98403172
D59: 0.5389210855 | E59: 1.113807379
D60: -0.5035099093 | E60: 0.9042024615
D61: -0.7225389709 | E61: 0.8654481669
D62: 1.847238309 | E62: 1.446935196
D63: -0.1537591743 | E63: 0.969716193
D64: 0.3727325293 | E64: 1.077395448
D65: 1.760499799 | E65: 1.422050665
D66: 0.2707031399 | E66: 1.055633043
D67: 0.04035541679 | E67: 1.008103742
D68: 0.7755397746 | E68: 1.167784022
D69: -0.4926437214 | E69: 0.9061696451
D70: 0.9899486031 | E70: 1.218949864
D71: -1.625794539 | E71: =EXP($B$6*$B$8+$B$7*D71*SQRT($B$8)) -> 0.7224125475
D72: 1.128842086 | E72: 1.253285392
D73: 0.1679654815 | E73: 1.034163716
D74: 0.581110271 | E74: 1.123245266
D75: 0.2718616088 | E75: 1.055877655
D76: 1.239509402 | E76: 1.281334202
D77: 0.4678804544 | E77: 1.098094155
D78: -1.130995315 | E78: 0.7975593213
D79: -0.2469641913 | E79: 0.95180715
D80: 1.036612503 | E80: 1.230379306
D81: -0.07136577551 | E81: 0.9858282235
D82: -0.4196374448 | E82: 0.9194979274
D83: 0.1858552423 | E83: 1.037870532
D84: 0.5873744158 | E84: 1.124653382
D85: -0.5275001058 | E85: 0.8998744538
D86: 1.538987817 | E86: 1.360425561
D87: -0.6639959338 | E87: =EXP($B$6*$B$8+$B$7*D87*SQRT($B$8)) -> 0.8756409147
D88: -0.44997023 | E88: 0.9139366268
D89: -0.1199077815 | E89: 0.9763037162
D90: -1.855250957 | E90: 0.6900093081
D91: -0.4508819984 | E91: 0.9137699823
D92: -0.7627340892 | E92: 0.858518699
D93: -0.1516150405 | E93: 0.9701321224
D94: 1.646681085 | E94: 1.390045134
D95: -2.313099685 | E95: 0.6296318868
D96: 1.578864612 | E96: 1.371318825
D97: 0.2826800483 | E97: 1.058164718
D98: 0.4624826033 | E98: 1.096909325
D99: -1.042676558 | E99: 0.8117723691
D100: -1.21357516 | E100: 0.7844950378
D101: 0.3426259809 | E101: 1.070927608
D102: -0.4795492714 | E102: 0.9085459139
D103: -0.1841613084 | E103: =EXP($B$6*$B$8+$B$7*D103*SQRT($B$8)) -> 0.9638377943
D104: -0.7608991837 | E104: 0.858833817
D105: 0.9106611287 | E105: 1.199772824
D106: -0.5799734026 | E106: 0.8904799602
D107: 0.2079445949 | E107: 1.042465853
D108: 0.2638034857 | E108: 1.054177347
D109: -0.1776118097 | E109: 0.9651011525
D110: -0.08149754649 | E110: 0.9838326089
D111: 0.6912762274 | E111: 1.148268603
D112: -1.615912879 | E112: 0.7238416863
D113: -0.5841570783 | E113: 0.8897351759
D114: 0.6525192475 | E114: 1.139402326
D115: 1.22001893 | E115: 1.276349163
D116: 0.955374162 | E116: 1.210550037
D117: 0.3715854291 | E117: 1.0771483
D118: 0.7277390068 | E118: 1.156673024
D119: -1.172297743 | E119: =EXP($B$6*$B$8+$B$7*D119*SQRT($B$8)) -> 0.7909982302
D120: -1.9946674 | E120: 0.6710353371
D121: -0.03772129276 | E121: 0.9924841279
D122: 1.703601811 | E122: 1.405960026
D123: 1.047583282 | E123: 1.233081914
D124: -0.135312348 | E124: 0.9733004379
D125: -0.946884029 | E125: 0.8274746507
D126: 1.551316018 | E126: 1.36378402
D127: 1.239741323 | E127: 1.281393637
D128: -1.244436589 | E128: 0.7796678231
D129: 0.8912229532 | E129: 1.1951176
D130: 0.08317101674 | E130: 1.016773322
D131: -0.8263259588 | E131: 0.8476688795
D132: 0.6223285709 | E132: 1.13254319
D133: -0.3851766905 | E133: 0.925857135
D134: -1.378527941 | E134: 0.7590363672
D135: -0.3205150279 | E135: =EXP($B$6*$B$8+$B$7*D135*SQRT($B$8)) -> 0.9379083848
D136: -1.267512744 | E136: 0.7760777669
D137: 0.5959327609 | E137: 1.126580065
D138: -0.1439912012 | E138: 0.971612477
D139: -0.01684611561 | E139: 0.9966364463
D140: 0.5490255717 | E140: 1.116060545
D141: -0.1282421636 | E141: 0.9746776942
D142: 0.3295588158 | E142: 1.068132464
D143: 1.462599357 | E143: 1.33979936
D144: -0.9375025911 | E144: 0.8290286886
D145: 0.05428546501 | E145: 1.010916245
D146: -0.5304514161 | E146: 0.8993434488
D147: 1.175296802 | E147: 1.264983856
D148: -0.5270965175 | E148: 0.8999470925
D149: -0.4938124221 | E149: 0.9059578616
D150: 0.7877360986 | E150: 1.170636034
D151: 0.05022457117 | E151: =EXP($B$6*$B$8+$B$7*D151*SQRT($B$8)) -> 1.010095534
D152: -0.2319438863 | E152: 0.9546707358
D153: -1.815606083 | E153: 0.695502122
D154: -1.026792233 | E154: 0.8143553611
D155: 0.1194598553 | E155: 1.024179671
D156: 0.3768161605 | E156: 1.078275744
D157: 1.146217983 | E157: 1.257648361
D158: -0.8022880138 | E158: 0.8517539348
D159: -0.4087803518 | E159: 0.9214967116
D160: 0.2896217666 | E160: 1.059634835
D161: 0.7899643606 | E161: 1.171157847
D162: 1.359430826 | E162: 1.312437592
D163: 0.6306595424 | E163: 1.1344318
D164: -0.9239511201 | E164: 0.8312786479
D165: 1.654452717 | E165: 1.392207398
D166: 0.8653296391 | E166: 1.188944487
D167: 0.109728262 | E167: =EXP($B$6*$B$8+$B$7*D167*SQRT($B$8)) -> 1.022188229
D168: 0.7310291039 | E168: 1.157434388
D169: 3.626337275 | E169: 2.065283396
D170: 0.8362280823 | E170: 1.182044559
D171: -1.036339654 | E171: 0.8128018461
D172: 0.1958028406 | E172: 1.039937451
D173: 2.465603757 | E173: 1.63741823
D174: -1.731432349 | E174: 0.7073098352
D175: 0.3109403224 | E175: 1.064162457
D176: 0.3320121778 | E176: 1.068656696
D177: -1.878534022 | E177: 0.6868036714
D178: -0.3720663244 | E178: 0.9282879857
D179: 1.269640961 | E179: 1.289079235
D180: -0.1909586445 | E180: 0.9625283787
D181: -1.594853529 | E181: 0.7268968428
D182: -1.994430932 | E182: 0.6710670736
D183: 0.2846195457 | E183: =EXP($B$6*$B$8+$B$7*D183*SQRT($B$8)) -> 1.058575259
D184: 1.992748366 | E184: 1.489662633
D185: 1.335833986 | E185: 1.306258308
D186: -0.1364333002 | E186: 0.9730822577
D187: 0.904819899 | E187: 1.198372013
D188: -1.140970198 | E188: 0.7959697951
D189: 1.277139745 | E189: 1.291013991
D190: -0.03480067789 | E190: 0.9930640301
D191: -0.2825026968 | E191: 0.9450659748
D192: -0.2242040864 | E192: 0.9561496722
D193: 0.2011495326 | E193: 1.041050091
D194: 0.09009909263 | E194: 1.018183155
D195: -0.6857931112 | E195: 0.8718319232
D196: -0.4719890967 | E196: 0.9099207062
D197: 1.156674898 | E197: 1.260281337
D198: -0.4504124718 | E198: 0.9138557942
D199: 1.202679414 | E199: =EXP($B$6*$B$8+$B$7*D199*SQRT($B$8)) -> 1.271930573
D200: -0.7956373338 | E200: 0.8528876372
... 805 more rows

Sheet Log Simulation
A1: SIMULATION OF LOGNORMAL RETURNS
J2: =show_formulaL(L2) -> =AVERAGE(L7:L1006)----> | L2: =AVERAGE(L7:L1006) -> -0.0338764725 | M2: =AVERAGE(M7:M1006) -> 0.005938453986
J3: =show_formulaL(L3) -> =STDEV(L7:L1006)----> | L3: =STDEV(L7:L1006) -> 1.015015356 | M3: =STDEV(M7:M1006) -> 0.9523498021
A6: Runs | B6: 100000
F7: 0 | G7: 0 | J7: =show_formulaL(L7) -> =rand_adj()----> | K7: 1 | L7: =rand_adj() -> -1.759876224 | M7: =NORMSINV(RAND()) -> -1.768803458 | O7: =show_formulaR(M7) -> < ---- =NORMSINV(RAND())
A8: Starttime | B8: 14:33:03 | C8: Mean | D8: 0.1 | F8: 0.01 | G8: 0 | K8: 2 | L8: =rand_adj() -> -2.075879039 | M8: =NORMSINV(RAND()) -> 0.02776962778
A9: Stoptime | B9: 14:33:18 | C9: Sigma | D9: 0.3 | F9: 0.02 | G9: 0 | K9: 3 | L9: =rand_adj() -> -0.5035684732 | M9: 1.35962058
A10: Elapsed | B10: 00:00:15 | F10: 0.03 | G10: 0 | K10: 4 | L10: -0.768561467 | M10: 0.5526610712
F11: 0.04 | G11: 0 | K11: 5 | L11: -1.311017595 | M11: 0.4208496111 | Q11: Rand1 | R11: Rand2
A12: To run the macro, press [Ctrl]+[a] . | F12: 0.05 | G12: 0 | I12: rand1 | J12: =2*RAND()-1 -> 0.6938740105 | K12: 6 | L12: 0.06616195721 | M12: 1.845404366 | P12: -4 | Q12: =FREQUENCY(L7:L1006,P12:P28) -> 0 | R12: =FREQUENCY(M7:M1006,P12:P28) -> 0
F13: 0.06 | G13: 0 | I13: rand2 | J13: =2*RAND()-1 -> -0.09819287734 | K13: 7 | L13: -1.383072185 | M13: 1.555110972 | P13: =P12+0.5 -> -3.5 | Q13: 0 | R13: 0
F14: 0.07 | G14: 0 | I14: S1 | J14: =J12^2+J13^2 -> 0.4911029837 | K14: 8 | L14: 0.2982621308 | M14: 0.7724528669 | P14: -3 | Q14: 1 | R14: 1
F15: 0.08 | G15: 0 | I15: S1 adj | J15: =J14<1 -> TRUE | K15: 9 | L15: 0.07576932711 | M15: 0.8967288686 | P15: =P14+0.5 -> -2.5 | Q15: 8 | R15: 2
F16: 0.09 | G16: 0 | K16: 10 | L16: -0.234140902 | M16: -1.040464219 | P16: -2 | Q16: 20 | R16: 17
F17: 0.1 | G17: 0 | I17: S1 | J17: =SQRT(-2*LOG(J14)/J14) -> 1.121467373 | K17: 11 | L17: -0.9454147174 | M17: 0.1694047537 | P17: =P16+0.5 -> -1.5 | Q17: 36 | R17: 36
F18: 0.11 | G18: 0 | K18: 12 | L18: 2.057553243 | M18: -0.6841781608 | P18: -1 | Q18: 109 | R18: 89
F19: 0.12 | G19: 0 | I19: X1 | J19: =IF(J15,J12*J17) -> 0.7781570641 | K19: 13 | L19: 0.4140484261 | M19: -2.028453085 | P19: =P18+0.5 -> -0.5 | Q19: 154 | R19: 152
F20: 0.13 | G20: 0 | I20: X2 | K20: 14 | L20: -1.149826423 | M20: -1.520466846 | P20: 0 | Q20: 178 | R20: 195
F21: 0.14 | G21: 0 | K21: 15 | L21: 0.0554463974 | M21: 1.383989574 | P21: =P20+0.5 -> 0.5 | Q21: 179 | R21: 200
F22: 0.15 | G22: 0 | K22: 16 | L22: 1.189776153 | M22: 0.07875003784 | P22: 1 | Q22: 163 | R22: 162
F23: 0.16 | G23: 0 | K23: 17 | L23: 1.102242276 | M23: 0.1178647592 | P23: =P22+0.5 -> 1.5 | Q23: 85 | R23: 92
F24: 0.17 | G24: 0 | K24: 18 | L24: 1.097070438 | M24: 0.9643091701 | P24: 2 | Q24: 47 | R24: 36
F25: 0.18 | G25: 0 | K25: 19 | L25: 0.6909536277 | M25: -0.1382298443 | P25: =P24+0.5 -> 2.5 | Q25: 14 | R25: 13
F26: 0.19 | G26: 0 | K26: 20 | L26: 0.7299095395 | M26: -0.8133757997 | P26: 3 | Q26: 6 | R26: 5
F27: 0.2 | G27: 0 | K27: 21 | L27: -0.4810866745 | M27: 0.3738251267 | P27: =P26+0.5 -> 3.5 | Q27: 0 | R27: 0
F28: 0.21 | G28: 0 | K28: 22 | L28: 0.9266826961 | M28: -0.6509867084 | P28: 4 | Q28: 0 | R28: 0
F29: 0.22 | G29: 0 | K29: 23 | L29: 0.6224505707 | M29: -1.171309172
F30: 0.23 | G30: 0 | K30: 24 | L30: -0.4505309886 | M30: -0.2236654605
F31: 0.24 | G31: 0 | K31: 25 | L31: -0.7168046375 | M31: -0.1807991806
F32: 0.25 | G32: 0 | K32: 26 | L32: 1.310114993 | M32: 0.2028724483
F33: 0.26 | G33: 0 | K33: 27 | L33: -0.9018748612 | M33: -0.71550524
F34: 0.27 | G34: 1e-05 | K34: 28 | L34: 0.3132597053 | M34: 1.465471771
F35: 0.28 | G35: 0 | K35: 29 | L35: -0.3846673397 | M35: 1.842481282
F36: 0.29 | G36: 0 | K36: 30 | L36: 0.07205408123 | M36: -0.5143022075
F37: 0.3 | G37: 1e-05 | K37: 31 | L37: 0.08521245259 | M37: 0.0493474954
F38: 0.31 | G38: 4e-05 | K38: 32 | L38: -0.09635379759 | M38: 0.6814336869
F39: 0.32 | G39: 2e-05 | K39: 33 | L39: -1.002808177 | M39: -0.2826635236
F40: 0.33 | G40: 5e-05 | K40: 34 | L40: 1.116509555 | M40: -1.230091856
F41: 0.34 | G41: 4e-05 | K41: 35 | L41: -0.5636301973 | M41: -0.07202707968
F42: 0.35 | G42: 4e-05 | K42: 36 | L42: -0.3116396645 | M42: -0.4416741801
F43: 0.36 | G43: 6e-05 | K43: 37 | L43: 2.580365738 | M43: 1.892662786
F44: 0.37 | G44: 7e-05 | K44: 38 | L44: -1.316623419 | M44: -0.8158445071
F45: 0.38 | G45: 0.00015 | K45: 39 | L45: 0.6505127621 | M45: 0.3266414619
F46: 0.39 | G46: 0.00017 | K46: 40 | L46: 0.6362467032 | M46: -1.085699696
F47: 0.4 | G47: 0.00023 | K47: 41 | L47: -0.6921249354 | M47: -0.7639567833
F48: 0.41 | G48: 0.0003 | K48: 42 | L48: -1.493215309 | M48: -1.452255149
F49: 0.42 | G49: 0.00041 | K49: 43 | L49: -0.6250098812 | M49: 0.05344519411
F50: 0.43 | G50: 0.00052 | K50: 44 | L50: 0.2312469606 | M50: 0.1511459417
F51: 0.44 | G51: 0.0006 | K51: 45 | L51: -1.264016599 | M51: -0.3476162331
F52: 0.45 | G52: 0.00071 | K52: 46 | L52: 0.3617664147 | M52: 0.2589413023
F53: 0.46 | G53: 0.00077 | K53: 47 | L53: -0.4407416678 | M53: 0.03778956631
F54: 0.47 | G54: 0.0012 | K54: 48 | L54: 0.4507073699 | M54: 0.2231402762
F55: 0.48 | G55: 0.00136 | K55: 49 | L55: 0.1327608711 | M55: 0.4445064181
F56: 0.49 | G56: 0.00155 | K56: 50 | L56: 0.2693626126 | M56: 0.884865221
F57: 0.5 | G57: 0.00174 | K57: 51 | L57: 2.571066264 | M57: 1.303742207
F58: 0.51 | G58: 0.00204 | K58: 52 | L58: -0.1578942595 | M58: 0.2735972182
F59: 0.52 | G59: 0.00215 | K59: 53 | L59: 0.7329428472 | M59: 0.7629088243
F60: 0.53 | G60: 0.00259 | K60: 54 | L60: -0.8392018609 | M60: 0.3996708235
F61: 0.54 | G61: 0.00284 | K61: 55 | L61: -1.931214183 | M61: -1.48337054
F62: 0.55 | G62: 0.00357 | K62: 56 | L62: 1.686209548 | M62: 0.8872559056
F63: 0.56 | G63: 0.00377 | K63: 57 | L63: -0.3282517738 | M63: 0.01990399893
F64: 0.57 | G64: 0.00412 | K64: 58 | L64: -0.4937424233 | M64: -0.4334857213
F65: 0.58 | G65: 0.0047 | K65: 59 | L65: -0.05118470723 | M65: 0.1441412273
F66: 0.59 | G66: 0.00538 | K66: 60 | L66: -0.4100430116 | M66: 0.3231183191
F67: 0.6 | G67: 0.00594 | K67: 61 | L67: 0.9427316066 | M67: 0.2389983281
F68: 0.61 | G68: 0.00603 | K68: 62 | L68: -0.6272869494 | M68: 0.9001216161
F69: 0.62 | G69: 0.00722 | K69: 63 | L69: -1.615012803 | M69: -0.9282268685
F70: 0.63 | G70: 0.00779 | K70: 64 | L70: -0.080175664 | M70: 1.461123068
F71: 0.64 | G71: 0.00821 | K71: 65 | L71: -0.245741411 | M71: 1.137702035
F72: 0.65 | G72: 0.00915 | K72: 66 | L72: =rand_adj() -> 1.558382504 | M72: =NORMSINV(RAND()) -> -1.145192663
F73: 0.66 | G73: 0.00935 | K73: 67 | L73: 0.8476852766 | M73: 1.342684453
F74: 0.67 | G74: 0.01016 | K74: 68 | L74: 0.2506329814 | M74: -1.28314944
F75: 0.68 | G75: 0.01105 | K75: 69 | L75: 0.006970786366 | M75: -1.55115348
F76: 0.69 | G76: 0.01189 | K76: 70 | L76: -0.1968084608 | M76: 0.4905143643
F77: 0.7 | G77: 0.01146 | K77: 71 | L77: 0.2983124373 | M77: -0.8644935656
F78: 0.71 | G78: 0.01284 | K78: 72 | L78: -1.247474062 | M78: -0.3089152916
F79: 0.72 | G79: 0.0137 | K79: 73 | L79: -1.147704306 | M79: 1.871517815
F80: 0.73 | G80: 0.01387 | K80: 74 | L80: -0.6499878561 | M80: 0.6504874827
F81: 0.74 | G81: 0.01482 | K81: 75 | L81: -2.109566676 | M81: -0.6412411306
F82: 0.75 | G82: 0.01563 | K82: 76 | L82: -0.4637317408 | M82: 0.787927876
F83: 0.76 | G83: 0.01648 | K83: 77 | L83: -0.4004760188 | M83: 1.904944567
F84: 0.77 | G84: 0.01704 | K84: 78 | L84: 1.688539328 | M84: 0.1267457074
F85: 0.78 | G85: 0.01811 | K85: 79 | L85: -0.1938447135 | M85: -0.8354212026
F86: 0.79 | G86: 0.01914 | K86: 80 | L86: -0.7675075615 | M86: -0.7475823146
F87: 0.8 | G87: 0.01906 | K87: 81 | L87: 1.828467623 | M87: 0.01458248026
F88: 0.81 | G88: 0.01956 | K88: 82 | L88: -0.9330363254 | M88: 1.775805066
F89: 0.82 | G89: 0.02002 | K89: 83 | L89: -0.3012111534 | M89: -0.4572187835
F90: 0.83 | G90: 0.01959 | K90: 84 | L90: 0.8645145299 | M90: -1.274889589
F91: 0.84 | G91: 0.0218 | K91: 85 | L91: 0.1935327156 | M91: 0.2684503938
F92: 0.85 | G92: 0.02199 | K92: 86 | L92: -0.2315117377 | M92: 0.3555193643
F93: 0.86 | G93: 0.0223 | K93: 87 | L93: -1.158535484 | M93: 0.5250603785
F94: 0.87 | G94: 0.0222 | K94: 88 | L94: 0.7997001486 | M94: 0.8502756448
F95: 0.88 | G95: 0.02291 | K95: 89 | L95: 0.6610262975 | M95: -0.005689392533
F96: 0.89 | G96: 0.02332 | K96: 90 | L96: 1.874602675 | M96: -0.8178927012
F97: 0.9 | G97: 0.02319 | K97: 91 | L97: 0.2435457963 | M97: -0.6932346661
F98: 0.91 | G98: 0.02423 | K98: 92 | L98: -1.800236816 | M98: 1.657322614
F99: 0.92 | G99: 0.02348 | K99: 93 | L99: 0.04632730794 | M99: 1.435523547
F100: 0.93 | G100: 0.0244 | K100: 94 | L100: 1.52343707 | M100: -1.435951174
F101: 0.94 | G101: 0.02506 | K101: 95 | L101: -0.6318055792 | M101: 0.7798917178
F102: 0.95 | G102: 0.02434 | K102: 96 | L102: -0.174795445 | M102: 1.049254835
F103: 0.96 | G103: 0.02524 | K103: 97 | L103: -1.244830432 | M103: 0.6893798663
F104: 0.97 | G104: 0.02511 | K104: 98 | L104: 0.1738309461 | M104: -0.005114352932
F105: 0.98 | G105: 0.02569 | K105: 99 | L105: 0.3333473291 | M105: 1.718595139
F106: 0.99 | G106: 0.02584 | K106: 100 | L106: 0.514068378 | M106: 1.32793586
F107: 1 | G107: 0.0251 | K107: 101 | L107: -1.838778205 | M107: -0.824034426
F108: 1.01 | G108: 0.02443 | K108: 102 | L108: -0.5600701639 | M108: 2.764362944
F109: 1.02 | G109: 0.02486 | K109: 103 | L109: 1.140485221 | M109: -1.055741589
F110: 1.03 | G110: 0.02517 | K110: 104 | L110: 0.1132284752 | M110: -1.272886666
F111: 1.04 | G111: 0.02458 | K111: 105 | L111: 2.207696699 | M111: -1.315929013
F112: 1.05 | G112: 0.02524 | K112: 106 | L112: -0.3816037179 | M112: 0.1058143959
F113: 1.06 | G113: 0.0247 | K113: 107 | L113: 0.9749948325 | M113: 0.6818025148
F114: 1.07 | G114: 0.02497 | K114: 108 | L114: 0.8972444761 | M114: -0.2598366575
F115: 1.08 | G115: 0.02481 | K115: 109 | L115: 0.3680277088 | M115: 0.9433829786
F116: 1.09 | G116: 0.02406 | K116: 110 | L116: -0.3839756058 | M116: 0.6194955535
F117: 1.1 | G117: 0.02405 | K117: 111 | L117: -1.825420463 | M117: 0.1996531782
F118: 1.11 | G118: 0.0234 | K118: 112 | L118: 0.3984098472 | M118: -1.290016833
F119: 1.12 | G119: 0.02377 | K119: 113 | L119: 1.232325862 | M119: -0.8085534998
F120: 1.13 | G120: 0.02321 | K120: 114 | L120: -0.7579917251 | M120: 0.4659875467
F121: 1.14 | G121: 0.02324 | K121: 115 | L121: 0.01453815807 | M121: -0.08491086693
F122: 1.15 | G122: 0.02294 | K122: 116 | L122: -0.2809786807 | M122: -0.7176092154
F123: 1.16 | G123: 0.02146 | K123: 117 | L123: 0.06088087277 | M123: 0.2612744416
F124: 1.17 | G124: 0.02203 | K124: 118 | L124: 0.812930683 | M124: -0.01743174075
F125: 1.18 | G125: 0.02184 | K125: 119 | L125: -1.959890423 | M125: 1.436994084
F126: 1.19 | G126: 0.02157 | K126: 120 | L126: 0.08421336772 | M126: -1.250555496
F127: 1.2 | G127: 0.0209 | K127: 121 | L127: -0.1099248684 | M127: 1.427870603
F128: 1.21 | G128: 0.01963 | K128: 122 | L128: 0.8631496283 | M128: 0.210897092
F129: 1.22 | G129: 0.02101 | K129: 123 | L129: -1.099205006 | M129: -0.5398131298
F130: 1.23 | G130: 0.02035 | K130: 124 | L130: -0.5454434005 | M130: 0.8882298001
F131: 1.24 | G131: 0.01925 | K131: 125 | L131: -0.5350577699 | M131: 1.539476083
F132: 1.25 | G132: 0.0193 | K132: 126 | L132: -2.618038435 | M132: 1.826540789
F133: 1.26 | G133: 0.01868 | K133: 127 | L133: -1.937638871 | M133: -1.010780958
F134: 1.27 | G134: 0.018 | K134: 128 | L134: 1.277355895 | M134: -1.242282016
F135: 1.28 | G135: 0.01767 | K135: 129 | L135: 0.9695225388 | M135: 1.040300454
F136: 1.29 | G136: 0.01762 | K136: 130 | L136: =rand_adj() -> -0.3709302535 | M136: =NORMSINV(RAND()) -> 0.0007176013439
F137: 1.3 | G137: 0.01754 | K137: 131 | L137: -0.8319442002 | M137: 0.3438370359
F138: 1.31 | G138: 0.01795 | K138: 132 | L138: -1.422446374 | M138: 0.4534021381
F139: 1.32 | G139: 0.0165 | K139: 133 | L139: 0.9566084549 | M139: -0.01810247155
F140: 1.33 | G140: 0.01612 | K140: 134 | L140: -0.597219514 | M140: 0.1348573045
F141: 1.34 | G141: 0.01599 | K141: 135 | L141: -0.5449455086 | M141: -1.026651281
F142: 1.35 | G142: 0.01564 | K142: 136 | L142: -0.6181870567 | M142: -2.069493693
F143: 1.36 | G143: 0.01518 | K143: 137 | L143: -1.28361 | M143: -0.2434417892
F144: 1.37 | G144: 0.01483 | K144: 138 | L144: -1.201236136 | M144: 0.01671217378
F145: 1.38 | G145: 0.0144 | K145: 139 | L145: 0.9525087855 | M145: 0.2792860098
F146: 1.39 | G146: 0.01453 | K146: 140 | L146: -0.9555613496 | M146: 1.053273923
F147: 1.4 | G147: 0.01394 | K147: 141 | L147: 0.03621159018 | M147: -0.7376393103
F148: 1.41 | G148: 0.0136 | K148: 142 | L148: 2.06872728 | M148: 0.6524665686
F149: 1.42 | G149: 0.01261 | K149: 143 | L149: -0.8856675531 | M149: 1.533956057
F150: 1.43 | G150: 0.01277 | K150: 144 | L150: -0.7031070928 | M150: -0.6890269048
F151: 1.44 | G151: 0.01249 | K151: 145 | L151: -1.826042383 | M151: -0.3253926736
F152: 1.45 | G152: 0.01229 | K152: 146 | L152: -0.3645863252 | M152: -0.0919629129
F153: 1.46 | G153: 0.01244 | K153: 147 | L153: -1.389972336 | M153: -0.9095128597
F154: 1.47 | G154: 0.01126 | K154: 148 | L154: -0.6036320214 | M154: 1.505217828
F155: 1.48 | G155: 0.01068 | K155: 149 | L155: -1.099496218 | M155: -1.350234245
F156: 1.49 | G156: 0.01092 | K156: 150 | L156: 0.5413162943 | M156: -1.745487616
F157: 1.5 | G157: 0.01042 | K157: 151 | L157: 1.417521703 | M157: -0.9516313603
F158: 1.51 | G158: 0.0099 | K158: 152 | L158: 0.8163569213 | M158: -0.1211070376
F159: 1.52 | G159: 0.01014 | K159: 153 | L159: 0.8036605882 | M159: 0.5319452526
F160: 1.53 | G160: 0.00969 | K160: 154 | L160: 0.7206066473 | M160: 0.7046753815
F161: 1.54 | G161: 0.00866 | K161: 155 | L161: 0.7632963565 | M161: -1.343962565
F162: 1.55 | G162: 0.00886 | K162: 156 | L162: -0.2907751067 | M162: 0.2580354673
F163: 1.56 | G163: 0.00903 | K163: 157 | L163: 2.230394708 | M163: -0.6590111147
F164: 1.57 | G164: 0.00822 | K164: 158 | L164: -1.301084361 | M164: -0.4577296412
F165: 1.58 | G165: 0.00779 | K165: 159 | L165: -2.92787959 | M165: -1.481415207
F166: 1.59 | G166: 0.0077 | K166: 160 | L166: 0.2759124332 | M166: 1.164565824
F167: 1.6 | G167: 0.00788 | K167: 161 | L167: -0.1477072689 | M167: 1.25649754
F168: 1.61 | G168: 0.00752 | K168: 162 | L168: 0.3750002671 | M168: -0.6231966837
F169: 1.62 | G169: 0.00708 | K169: 163 | L169: -1.875678775 | M169: -0.4405229137
F170: 1.63 | G170: 0.0069 | K170: 164 | L170: 1.014243869 | M170: 0.9943592165
F171: 1.64 | G171: 0.00671 | K171: 165 | L171: -1.363578262 | M171: 0.08666655194
F172: 1.65 | G172: 0.00648 | K172: 166 | L172: -0.1566271245 | M172: -0.635932092
F173: 1.66 | G173: 0.00649 | K173: 167 | L173: -1.213648555 | M173: -0.5089364042
F174: 1.67 | G174: 0.00637 | K174: 168 | L174: -0.1179401961 | M174: -1.842942984
F175: 1.68 | G175: 0.00618 | K175: 169 | L175: 1.32164863 | M175: 0.1014273408
F176: 1.69 | G176: 0.00554 | K176: 170 | L176: 1.329695058 | M176: -1.078058576
F177: 1.7 | G177: 0.00544 | K177: 171 | L177: -0.6686453702 | M177: -0.3974334241
F178: 1.71 | G178: 0.00549 | K178: 172 | L178: 0.5723333074 | M178: 1.533377999
F179: 1.72 | G179: 0.00514 | K179: 173 | L179: 0.06101238015 | M179: 0.2883794484
F180: 1.73 | G180: 0.00506 | K180: 174 | L180: 0.9339122671 | M180: -0.2506977594
F181: 1.74 | G181: 0.00482 | K181: 175 | L181: -1.157272821 | M181: 1.491570129
F182: 1.75 | G182: 0.00457 | K182: 176 | L182: 0.6126314035 | M182: 1.104168033
F183: 1.76 | G183: 0.00448 | K183: 177 | L183: 0.2895409317 | M183: -1.133711775
F184: 1.77 | G184: 0.00447 | K184: 178 | L184: 0.4599143386 | M184: -0.02693787923
F185: 1.78 | G185: 0.00442 | K185: 179 | L185: -0.07779390019 | M185: -0.888359475
F186: 1.79 | G186: 0.00409 | K186: 180 | L186: -2.325287601 | M186: 0.1490174578
F187: 1.8 | G187: 0.00415 | K187: 181 | L187: 1.332314167 | M187: -0.3469767312
F188: 1.81 | G188: 0.0038 | K188: 182 | L188: 1.429144711 | M188: -1.753970614
F189: 1.82 | G189: 0.00367 | K189: 183 | L189: 1.978752326 | M189: -0.9727741153
F190: 1.83 | G190: 0.00337 | K190: 184 | L190: 1.389129305 | M190: 0.0238826571
F191: 1.84 | G191: 0.00338 | K191: 185 | L191: 0.7209741536 | M191: -1.26930497
F192: 1.85 | G192: 0.00293 | K192: 186 | L192: -2.044936229 | M192: -1.417899272
F193: 1.86 | G193: 0.00301 | K193: 187 | L193: -1.508001062 | M193: -0.1379090397
F194: 1.87 | G194: 0.00311 | K194: 188 | L194: 0.5042593044 | M194: -0.137583488
F195: 1.88 | G195: 0.00294 | K195: 189 | L195: 1.359783575 | M195: 0.3107045491
F196: 1.89 | G196: 0.00283 | K196: 190 | L196: 0.8063701204 | M196: -1.965981509
F197: 1.9 | G197: 0.00256 | K197: 191 | L197: -0.05728800014 | M197: 0.4836310664
F198: 1.91 | G198: 0.00258 | K198: 192 | L198: -1.762067068 | M198: 0.07944150095
F199: 1.92 | G199: 0.00245 | K199: 193 | L199: -1.186349253 | M199: 1.270322362
F200: 1.93 | G200: 0.00233 | K200: 194 | L200: =rand_adj() -> -0.6083679516 | M200: =NORMSINV(RAND()) -> -0.4538222234
F201: 1.94 | G201: 0.00249 | K201: 195 | L201: -1.293594486 | M201: -1.609186327
F202: 1.95 | G202: 0.00213 | K202: 196 | L202: 0.1415736275 | M202: -0.9701023426
... 805 more rows
